Workbook

Sheet Europæiske ERV (hidden)
B15: PRÆMIEBEREGNER fra januar 2023
C31: =+'ERV Data'!$D$1 -> #40503 - Y2022_1.00 | F31: © 2022 - Europæiske ERV Denmark - All rights reserved.

Sheet Europæiske ERV HOVEDMENU
D5: PRÆMIEBEREGNER fra januar 2023
K14: HUSK Det er denne pdf der skal indsendes til Europæiske ERV for udstedelse af police
C35: =+'ERV Data'!$D$1 -> #40503 - Y2022_1.00 | F35: © 2022 - Europæiske ERV Denmark - All rights reserved.

Sheet Info om virksomhed (hidden)
C6: Information om virksomheden
C8: Virksomhedens navn | D8: Indtast virksomhedens navn
C9: Adresse | D9: Indtast adresse
C10: Post nr | D10: Indtast postnr
C11: By | D11: Indtast by
C12: Land | D12: Indtast primært bopælsland
C13: CVR nummer | D13: Indtast CVR nr
C15: Kontaktperson i virksomhed | D15: Indtast kontaktperson
C16: Tlf. nummer på kontaktperson | D16: Indtast tlf
C17: E-mail kontaktperson | D17: Indtast email
C19: Start for forsikring | D19: dd-mm-år
C20: Hovedforfald | D20: mm-år
C22: Antal betalingsrater pr. år | D22: 1
C24: Sprog på police- Dansk/Engelsk | D24: Dansk
C25: Antal policekort | D25: 1
C27: Medforsikrede datterselskaber, inkl lande og cvr numre | D27: Indtast datterselskaber inkl cvr nummer
C28: (Lande uden for EU skal godkendes af Europæiske ERV)
C34: Har kunden forsikring i eksisterende selskab som skal opsiges? | D34: Nej
C35: =IF($D$34="Ja",IF('ERV Data'!D10="Husk skadesprocent","HUSK at sikre at skadesprocenten ikke overstiger 50% af den beregnet ERV præmie ?",IF('ERV Data'!D10="Risikospørgsmål","Kunden må maksimalt have haft 3 skader indenfor de sidste tre år ved en præmie op til 5.000 kr. Kunden må maksimalt have haft 6 skader indenfor de sidste tre år ved en præmie mellem 5.001 kr. og 75.000 kr.",""))) -> FALSE
C36: =IF($D$34="Ja","Hvilket forsikringsselskab ?","") ->  | D36: Hvilket forsikringsselskab
C37: =IF($D$34="Ja","Policenummer ?","") ->  | D37: Hvilket policenummer
C38: =IF($D$34="Ja","Hovedforfaldsdato ?","") ->  | D38: dd-mm-år
C39: =IF($D$34="Ja","Udløbsdato ?","") ->  | D39: dd-mm-år

Sheet Præmie beregning (hidden)
B4: ='Bruger info'!D8 -> Special Risk - forsikringsformidling ApS
B6: Valuta i DKK. | H6: ERV præmie - 2023 | J6: =CONCATENATE(B4," ","præmie - 2023") -> Special Risk - forsikringsformidling ApS præmie - 2023
B7: Forsikringsdækning | G7: Forsikringssum | H7: pr. rejsedag | J7: pr. rejsedag
D9: 1. Grundækning, stk. 1-4:
D10: (Sygdom/tilskadekomst, Hjemtransport, Sygeledsagelse/Tilkaldelse, Krisehjælp)
D11: a. Norden | G11: Ubegrænset | H11: ='ERV præmie satser'!J7 -> 11.72 | J11: ='ERV præmie satser'!L7 -> 11.72
D12: b. Europa | G12: Ubegrænset | H12: ='ERV præmie satser'!J8 -> 30.50 | J12: ='ERV præmie satser'!L8 -> 30.50
D13: c. Verden | G13: Ubegrænset | H13: ='ERV præmie satser'!J9 -> 50.58 | J13: ='ERV præmie satser'!L9 -> 50.58
B15: Ja | D15: 2. Rejseulykke, stk. 5:
D16: (Min 1 - max 2.000.000 kr.) | E16: Ulykke- Død | G16: 500,000
D17: (Min 1 - max 2.000.000 kr.) | E17: Ulykke - Invaliditet | G17: 500,000 | H17: =IF($B$15="JA",SUM('ERV præmie satser'!J13),"Fravalgt") -> 8.05 | J17: =IF($B$15="JA",SUM('ERV præmie satser'!L13),"Fravalgt") -> 8.05
B18: Ja | D18: Dobbelt erstatning
B20: Ja | D20: 3. Rejseliv og sygdomsinvaliditet, stk. 6:
D21: (Min 1 - max 1.000.000 kr.) | E21: Livsforsikring Død | G21: 500,000
D22: (Min 1 - max 1.000.000 kr.) | E22: Sygdomsinvaliditet | G22: 500,000 | H22: =IF($B$20="JA",SUM('ERV præmie satser'!J18),"Fravalgt") -> 8.50 | J22: =IF($B$20="JA",SUM('ERV præmie satser'!L18),"Fravalgt") -> 8.50
B24: Ja | D24: 4. Forsinket fremmøde - mistet, forsinket eller aflyst afgang, stk. 7: | H24: =IF($B$24="JA",SUM('ERV præmie satser'!J20),"Fravalgt") -> 3.21 | J24: =IF($B$24="JA",SUM('ERV præmie satser'!L20),"Fravalgt") -> 3.21
B26: Ja | D26: 5. Bagageforsinkelse, stk. 8:
D27: (Min 3.000 - max 7.000 kr.) | G27: 5,000 | H27: =IF($B$26="JA",SUM('ERV præmie satser'!J23),"Fravalgt") -> 11.60 | J27: =IF($B$26="JA",SUM('ERV præmie satser'!L23),"Fravalgt") -> 11.60
B29: Ja | D29: 6. Vejhjælp, stk. 9: | H29: =IF($B$29="JA",SUM('ERV præmie satser'!J25),"Fravalgt") -> 0.56 | J29: =IF($B$29="JA",SUM('ERV præmie satser'!L25),"Fravalgt") -> 0.56
B31: Ja | D31: 7. Bagage, stk. 10:
D32: (Bagage min 10.000 - max 75.000 kr.) | E32: Bagage | G32: 30,000
D33: (Kontanter min 5.000 - max 10.000 kr.) | E33: Kontanter | G33: 5,000 | H33: =IF($B$31="JA",SUM('ERV præmie satser'!J29),"Fravalgt") -> 5.49 | J33: =IF($B$31="JA",SUM('ERV præmie satser'!L29),"Fravalgt") -> 5.49
B35: Ja | D35: 8. Hjemkald, stk. 11: | H35: =IF($B$35="JA",SUM('ERV præmie satser'!J31),"Fravalgt") -> 4.55 | J35: =IF($B$35="JA",SUM('ERV præmie satser'!L31),"Fravalgt") -> 4.55
B37: Ja | D37: 9. Erstatningsmedarbejder, stk. 12: | H37: =IF($B$37="JA",SUM('ERV præmie satser'!J33),"Fravalgt") -> 0.43 | J37: =IF($B$37="JA",SUM('ERV præmie satser'!L33),"Fravalgt") -> 0.43
B39: Ja | D39: 10. Tryghedspakken, stk. 13: | H39: =IF($B$39="JA",SUM('ERV præmie satser'!J35),"Fravalgt") -> 1.17 | J39: =IF($B$39="JA",SUM('ERV præmie satser'!L35),"Fravalgt") -> 1.17
B41: Fravalgt | D41: 10.1 Udvide trygshedspakken med Travel Security Hotline
D42: ="Præmie pr. dag, tillægges i rejsedage (Bopælsland: "&'ERV præmie satser'!L70 &" Norden: "&'ERV præmie satser'!L71&", Europa: "&'ERV præmie satser'!L72&", Verden: "&'ERV præmie satser'!L73&")" -> Præmie pr. dag, tillægges i rejsedage (Bopælsland: 0,09 Norden: 0,97, Europa: 2,38, Verden: 3,88)
B43: Ja | D43: 11 Privatansvar og global juridisk assistance, stk. 14: | H43: =IF($B$43="JA",SUM('ERV præmie satser'!J39),"Fravalgt") -> 0.68 | J43: =IF($B$43="JA",SUM('ERV præmie satser'!L39),"Fravalgt") -> 0.68
B45: Ja | D45: 12 Overfald, stk. 15: | H45: =IF($B$45="JA",SUM('ERV præmie satser'!J41),"Fravalgt") -> 1.12 | J45: =IF($B$45="JA",SUM('ERV præmie satser'!L41),"Fravalgt") -> 1.12
B47: Ja | D47: 13. Selvrisiko indbo- og bilforsikring – gælder kun ved fast bopæl i EU, stk. 16: | H47: =IF($B$47="JA",SUM('ERV præmie satser'!J43),"Fravalgt") -> 1.57 | J47: =IF($B$47="JA",SUM('ERV præmie satser'!L43),"Fravalgt") -> 1.57
B49: Ja | D49: 14. Selvrisiko ved leje af motorkøretøj, stk. 17: | H49: =IF($B$49="JA",SUM('ERV præmie satser'!J45),"Fravalgt") -> 0.56 | J49: =IF($B$49="JA",SUM('ERV præmie satser'!L45),"Fravalgt") -> 0.56
B51: Ja | D51: 15. Afbestilling, stk. 18:
D52: (Min 5.000 - max 50.000 kr.) | G52: 5,000 | H52: =IF($B$51="JA",SUM('ERV præmie satser'!J48),"Fravalgt") -> 10.73 | J52: =IF($B$51="JA",SUM('ERV præmie satser'!L48),"Fravalgt") -> 10.73
D54: Antal rejsedage | I54: i alt | K54: i alt
D55: Norden | E55: Antal rejsedage: | G55: 0 | H55: ='ERV præmie satser'!J51 -> 69.94 | I55: ='ERV præmie satser'!J57 -> 0.00 | J55: ='ERV præmie satser'!L51 -> 69.94 | K55: ='ERV præmie satser'!L57 -> 0.00
D56: Europa | E56: Antal rejsedage: | G56: 0 | H56: ='ERV præmie satser'!J52 -> 88.72 | I56: ='ERV præmie satser'!J58 -> 0.00 | J56: ='ERV præmie satser'!L52 -> 88.72 | K56: ='ERV præmie satser'!L58 -> 0.00
D57: Verden | E57: Antal rejsedage: | G57: 0 | H57: ='ERV præmie satser'!J53 -> 108.80 | I57: ='ERV præmie satser'!J59 -> 0.00 | J57: ='ERV præmie satser'!L53 -> 108.80 | K57: ='ERV præmie satser'!L59 -> 0.00
D58: Bopælsland | E58: Antal rejsedage: | G58: 0 | H58: ='ERV præmie satser'!J54 -> 53.24 | I58: ='ERV præmie satser'!J60 -> 0.00 | J58: ='ERV præmie satser'!L54 -> 53.24 | K58: ='ERV præmie satser'!L60 -> 0.00
B60: Præmie, ekskl. skadeforsikringsafgift til staten | I60: ='ERV præmie satser'!J61 -> 1,600.00 | K60: ='ERV præmie satser'!L61 -> 1,600.00
B62: Skadesforsikringsafgift, 1.1 % | K62: =(K60+K61)*1.1% -> 17.60
B63: ***Indtast valgfri tekst *** | E63: Procentssats: | G63: 0.00% | K63: =G63*(K60+K61) -> 0.00
B64: ="Total ("&B63&" er ekskl. moms)" -> Total (***Indtast valgfri tekst *** er ekskl. moms) | K64: =SUM(K60:K63) -> 1,617.60
B65: Total | K65: =K60+K61+K62 -> 1,617.60
B69: Ved spørgsmål venligst kontakt:
E71: Firmasupport, Mandag-fredag: 08.30-16.00 | G71: Tlf: +45 33 27 83 35 | I71: E-mail: ERHVERV@ERV.DK
B75: Hvad omfatter dækningerne
B76: Grunddækning: Dækker lægebesøg og hospitalsbehandling ved akut sygdom og tilskadekomst, receptpligtig medicin, sygetransport til nærmest egnede hospital, hjemtransport til bopæl eller hospital i bopælsland, hjemsendelse af efterlagt bagage og lægelig fejlbehandling. Sygeledsagelse og tilkaldelse op til 3 personer. Ubegrænset dækning til smertestillinde tandbehandling og tandskade som følge af ulykke. Tyggeskade op til DKK 10.000 Ubegrænset krisehjælp til den forsikrede i tilfælde af ulykke, voldtægt, overfald, røveri eller anden traumatisk oplevelse som f.eks. terror, naturkatastrofer, politiske uroligheder m.m. Telefonisk krisehjælp til nærmeste familie. Psykolog og psykiater efter hjemkomst til bopælsland DKK 15.000.
B78: Rejseulykke- invaliditet og dødsfald Yder erstatning ved invaliditet som følge af ulykke ved varigt mén fra 5%. Dækker desuden erhvervsevnetab, hjælpemidler og tekniske ændringer af f.eks. arbejdsplads eller bopæl. Genoptræning og arbejdsgivers ekstraudgifter til transport. Død som følge af ulykke. Dobbelt erstatning ved rejseulykke - Invaliditet Særskilt tilvalg - Ved varigt mén på over 20% ydes dobbelterstatning. Godtgørelsen fordobles i forhold til méngradens svarende procent af forsikringssummen. Rejseliv og sygdomsinvaliditet Invaliditet som følge af sygdom ved varigt mén på mindst 5 %. Godtgørelsen fordobles i forhold til méngradens svarende procent af forsikringssummen. Dødsfald som følge af sygdom.
B80: Forsinket fremmøde – mistet, forsinket eller aflyst afgang Dækker nye billetter + indkvartering hvis kunden mister en afgang eller forbindelse pga. uforudsete hændelser på vej til afgang. Hvis transportmidlet er forsinket mere end 3 timer, aflyst eller overbooket dækkes nye billetter + indkvartering. Dækning på ud-, rund- eller hjemrejse.
B82: Bagageforsinkelse Dækker udgifter til toiletartikler, tøj eller andre ejendele hvis bagage forsinkes . Ingen karenstid. Dækning på både ud-, rund- og hjemrejse.
B84: Vejhjælp Hvis bilen bryder sammen eller er involveret i sammenstød dækkes bugsering, lejebil, rejseudgifter til offentlig transport og indkvartering.
B86: Bagage Tyveri, beskadigelse eller bortkomst af bagage. Dækkes desuden kontanter, rejsedokumenter, eventuelle udgifter ifm. med politirapport, samt omstilling af låse og/eller erstatning af nøgler til privat bolig eller køretøj.
B88: Hjemkald Bliver en person i nærmeste familie akut alvorlig syg, kommer til skade eller dør, dækkes hjemrejse. Dækkes også hvis det samme sker blandt nære medarbejdere på forsikredes arbejdsplads eller forsikrede ikke kan gennemføre erhvervsrejse pga. en uforudset hændelse på bestemmelsesstedet der umuliggør formålet med erhvervsrejsen.
B90: Erstatningsmedarbejder Dækker hvis den forsikrede skal erstattes af en anden medarbejder pga. akut sygdom, tilskadekomst, dødsfald eller hjemkaldelse. Refusion af ubenyttede rejseudgifter er også dækket.
B92: Tryghedspakken Transport til sikker destination og/eller bopælsland ifm. evakuering hvis Udenrigsministeriet eller lokale myndigheder anbefaler at forlade det område forsikrede befinder sig i. Hotelophold, kost lokaltransport, erstatningskøb af tøj og toiletartikler er dækket. Forlænget ophold ved tilbageholdelse pga. naturkatastrofer, karantæne, terroraktioner, udbrud af krig eller politiske uroligheder. Ekstraudgifter til tøj, toiletartikler eller anden udgift, hvis adgang til private ejendele ikke er mulig pga. myndighedernes afspærring. Eftersøgning og redning. Gidselkompensation, dækning ved kidnapning eller kapring DKK 750.000 pr. skadebegivenhed (se fordeling i forsikringsoversigt)
B93: Travel Security Hotline Travel Security Hotline er er tilvalg til Tryghedspakken. Servicen Travel Security Hotline giver ubegrænset adgang til telefonisk sikkerhedsrådgivning og assistance, døgnet rundt, året rundt. Sikkerhedsrådgiverne har erfaring fra militær, efterretningstjeneste og politi og er uddannede i at analysere og vurdere sikkerhedsrisici på lokalt såvel som globalt niveau. Det giver jeres medarbejdere de bedste forudsætninger for at kunne færdes sikkert og trygt på erhvervsrejser i hele verden.
B94: Læs mere om Travel Security Hotline.
B96: Privatansvar Privatansvar, person og tingskade over for tredjepart – DKK 10 mio. pr. rejse. Dækker også skader på lejer bolig/hotel samt indbo. Global juridisk assistance samt sikkerhedsstillelse/kaution.
B98: Overfald Personskade som følge af overfald DKK 1. mio. pr. skadestilfælde
B100: Selvrisiko - indbo og bilforsikring – gælder kun ved fastbopæl i EU Ved skader på egen bopæl i bopælslandet eller ved kaskoskader på privatejet/leaset bil som bruges på erhvervsrejsen dækkes selvrisikoen op til DKK 15.000 på egen privattegnet indbo- eller bilforsikring. Selvrisiko ved leje af motorkøretøj Dækker selvrisiko i forbindelse med kaskoskade på lejet bil, autocamper, båd, motorcykel, knallert, snescooter eller cykel op til DKK 25.000.
B102: Afbestilling Afbestilling af både rejse og events såfremt forsikrede ikke kan påbegynde sin erhvervsrejse f.eks. på grund af: Akut sygdom el. dødsfald hos sikrede, dennes nærmeste familie, nær kollega eller den person som er formålet med rejsen. Særlige forhold i virksomheden eller ved sikredes private bopæl. Udenrigsministeriet fraråder al indrejse til bestemmelsessted.
B104: Krig-risiko: Såfremt at et land er nævnt på ERVs krigszone liste, skal der tegnes separat krigszone forsikring. Kontakt ERV for tilbud.
B105: Klik her for at se aktuel krigs- og risikozoneliste.
B107: Bopælsland: Herved forstås rejser ud over 50 km fra hjem/arbejdsplads, medmindre andet er anført på policen.
B109: Norden: Grønland, Finland (inkl. Åland), Færøerne, Island, Norge og Sverige
B111: Europa: Albanien, Andorra, Belgien, Bosnien-Herzegovina, Bulgarien, Cypern, Estland, Frankrig, Grækenland, Holland, Belarus mellem Andorra og Belgien., Irland, Italien, Kosovo, Kroatien, Letland, Liechtenstein, Litauen, Luxembourg, Makedonien, Malta, Moldova, Monaco, Montenegro, Polen, Portugal, Rumænien, Rusland (indtil Ural), San Marino, Schweiz, Serbien, Slovakiet, Slovenien, Spanien, Storbritannien, Tjekkiet, Tyrkiet, Tyskland, Ukraine, Ungarn, Vatikanstaten og Østrig
B113: Verden: Lande som ikke er defineret under Norden og Europa

Sheet Klausuler (hidden)
C6: Klausuler
C8: Medrejsende ægtefæller/samlever | D8: Ja
C9: Medrejsende børn | D9: Ja
C10: Kombinerede Erhvervs- og ferierejser | D10: Ja
C12: Bestyrelsesmedlemmer | D12: Ja
C13: Inviterede gæster | D13: Ja
C14: Eksterne konsulenter | D14: Ja
C16: Medforsikrede datterselskaber | D16: Fravalgt
C19: Øvrige forhold der skal noteres Sendes kun med til Europæiske ERV

Sheet Bruger info (hidden)
C6: =CONCATENATE(D8," ","information") -> Special Risk - forsikringsformidling ApS information
C8: Agent: | D8: =+'ERV Data'!D14 -> Special Risk - forsikringsformidling ApS
C9: Agent nummer: | D9: 3501601
C10: Kontaktperson: | D10: Kontakt person - Agent
C11: Email - kontaktperson: | D11: Email Kontakt person - Agent
C12: Tlf - kontaktperson: | D12: Tlf Kontakt person - Agent
C13: Agent maximum rabat sats: | D13: =+'ERV Data'!D15 -> 42%
C14: Agent minimums præmie sats: | D14: =CONCATENATE('ERV Data'!D16," ","DKK") -> 1600 DKK
C15: Agent maximum præmie total: | D15: =CONCATENATE('ERV Data'!D17," ","DKK") -> 100000 DKK
C16: Ønsket rabat sats: | D16: 0%
D51: 0

Sheet Bruger admin (hidden)
B5: Bruger admin
F22: Indtast certifikat nummer:
F24: Certifikat nr
C32: =+'ERV Data'!$D$1 -> #40503 - Y2022_1.00 | F32: © 2022 - Europæiske ERV Denmark - All rights reserved.

Sheet PDF tilbud (hidden)
AA1: ='Præmie beregning'!B41 -> Fravalgt
AA2: Fravalgt
B10: Tilbud til
B11: ='Info om virksomhed'!D8 & "" -> Indtast virksomhedens navn
B91: Tilbud
B94: Forsikringstager | I94: 40503, CTI
B96: ='Info om virksomhed'!D8 -> Indtast virksomhedens navn | I96: Ikrafttrædelsesdato | K96: ='Info om virksomhed'!D19 -> dd-mm-år
B97: ='Info om virksomhed'!D9 -> Indtast adresse | I97: Hovedforfaldsdato | K97: ='Info om virksomhed'!D20 -> mm-år
B98: =CONCATENATE('Info om virksomhed'!D10," ",'Info om virksomhed'!D11) -> Indtast postnr Indtast by | I98: Forsikringsperiode | K98: 1 år
B99: =+'Info om virksomhed'!D12 -> Indtast primært bopælsland | I99: Antal betalingsrater pr. år | K99: =+'Info om virksomhed'!D22 -> 1
I100: Forsikringsbetingelser | K100: 40502
I101: Agenturnr. | K101: ='Bruger info'!D9 -> 3501601
I102: Valuta | K102: DKK
I103: Udstedelsesdato | K103: =TODAY() -> 2022-11-29
B109: Særlige betingelser og klausuler:
C111: Klausuler:
C112: Medrejsende ægtefæller/samlever | J112: =+Klausuler!D8 -> Ja
C113: Medrejsende børn | J113: =+Klausuler!D9 -> Ja
C114: Kombinerede erhvervs- og ferierejser | J114: =+Klausuler!D10 -> Ja
C115: Bestyrelsesmedlemmer | J115: =+Klausuler!D12 -> Ja
C116: Inviterede gæster | J116: =+Klausuler!D13 -> Ja
C117: Eksterne konsulenter | J117: =+Klausuler!D14 -> Ja
C118: Medforsikrede datterselskaber | J118: =+Klausuler!D16 -> Fravalgt
C124: Forsikringen omfatter de hos forsikringstageren medarbejdende ejere og medejere samt de hos
C125: forsikringstageren ansatte personer under erhvervsrejser over alt i verden. Erhvervsrejser i bopælslandet er
C126: dækket, såfremt dette er anført særskilt.
C128: Forsikringstageren fører regnskab med rejseaktiviteten, som grundlag for præmiens beregning.
C130: =CONCATENATE(IF(OR($J$112="Ja",$J$113="Ja",$J$114="Ja",$J$115="Ja",$J$116="Ja",$J$117="Ja"),"Policen er udvidet til at omfatte: "," "),IF(J112="Ja",LOWER(CONCATENATE(C112,", ",)),""),IF(J113="Ja",LOWER(CONCATENATE(C113,", ",)),""),IF(J114="Ja",LOWER(CONCATENATE(C114,", ",)),""),IF(J115="Ja",LOWER(CONCATENATE(C115,", ",)),""),IF(J116="Ja",LOWER(CONCATENATE(C116,", ",)),""),IF(J117="Ja",LOWER(CONCATENATE(C117,", ",)),"")) -> Policen er udvidet til at omfatte: medrejsende ægtefæller/samlever, medrejsende børn, kombinerede erhvervs- og ferierejser, bestyrelsesmedlemmer, inviterede gæster, eksterne konsulenter,
C135: Forsikringen dækker tillige under rejser i områder som er defineret på Europæiskes krigs- og risikoliste som
C136: risikozoner (krigszoner undtaget).
C138: =CONCATENATE("Minimumspræmien pr. forsikringsår andrager kr. ",TEXT('ERV Data'!D16,"#.##0"),".") -> Minimumspræmien pr. forsikringsår andrager kr. 1.600.
C140: De bestilte BTI-kort sendes særskilt via Europæiskes kortleverandør.
C142: Præmien er baseret på 2023 præmier og indekseres pr. 1. januar 2024.
C144: Præmien er inkl. specialrabat.
C146: Europæiske ERV gør opmærksom på at forsikringsagenten modtager provision/vederlag som følge af forsikringsformidlingen. Ved anmodning er det muligt at få oplyst provisionens/vederlagets størrelse. Enhver ændring af denne aftale skal bekræftes af Europæiske ERV senest 1 måned før policens hovedforfald. I et sådant tilfælde forbeholder Europæiske ERV sig ret til, at ændre præmien ved førstkommende hovedforfaldsdato.
C162: Såfremt et land er nævnt på ERVs krigszoneliste, skal der tegnes separat krigszone forsikring.
C163: Se mere på: | D163: erv.dk | E163: Venligst kontakt ERV for tilbud.
C165: Produktinformation om vores forsikringer: | F165: Link
B169: =+'ERV Data'!$D$1 -> #40503 - Y2022_1.00 | J169: ="Tilbud side " & L170 & "/" & SUM(L170+L260+L344+L424+L503+L597+L684+L777) -> Tilbud side 1/7
L170: 1
B171: Europæiske ERV | J171: www.erv.dk
B172: Frederiksberg Allé 3, DK-1790 København V | J172: Telefon +45 33 25 25 25
B173: CVR 62940514 | J173: Email erhverv@erv.dk
B178: Tilbud
H180: Præmie pr. person pr. dag
B182: Dækningsoversigt | F182: Forsikringssum | H182: Norden | I182: Europa | J182: Verden | K182: Bopælsland
B184: Obligatorisk grunddækning
B185: Norden | F185: ='Præmie beregning'!G11 -> Ubegrænset | H185: ='Præmie beregning'!J11 -> 11.72 | I185: - | J185: - | K185: -
B186: Europa | F186: ='Præmie beregning'!G12 -> Ubegrænset | H186: - | I186: ='Præmie beregning'!J12 -> 30.50 | J186: - | K186: -
B187: Verden | F187: ='Præmie beregning'!G13 -> Ubegrænset | H187: - | I187: - | J187: ='Præmie beregning'!J13 -> 50.58 | K187: -
B190: Tillægsdækning
B191: Rejseulykke | H191: ='Præmie beregning'!J17 -> 8.05 | I191: ='Præmie beregning'!J17 -> 8.05 | J191: ='Præmie beregning'!J17 -> 8.05 | K191: ='Præmie beregning'!J17 -> 8.05
C192: Ulykke - Død | F192: ='Præmie beregning'!G16 -> 500,000
C193: Ulykke - Invaliditet | F193: ='Præmie beregning'!G17 -> 500,000
C194: Dobbelt erstatning | F194: ='Præmie beregning'!B18 -> Ja
B196: Rejseliv og sygdomsinvaliditet | H196: ='Præmie beregning'!J22 -> 8.50 | I196: ='Præmie beregning'!J22 -> 8.50 | J196: ='Præmie beregning'!J22 -> 8.50 | K196: ='Præmie beregning'!J22 -> 8.50
C197: Livsforsikring Død | F197: ='Præmie beregning'!G21 -> 500,000
C198: Sygdomsinvaliditet | F198: ='Præmie beregning'!G22 -> 500,000
B200: Forsinket fremmøde - mistet, forsinket eller aflyst afgang | H200: ='Præmie beregning'!J24 -> 3.21 | I200: ='Præmie beregning'!J24 -> 3.21 | J200: ='Præmie beregning'!J24 -> 3.21 | K200: ='Præmie beregning'!J24 -> 3.21
B202: Bagageforsinkelse | F202: ='Præmie beregning'!G27 -> 5,000 | H202: ='Præmie beregning'!J27 -> 11.60 | I202: ='Præmie beregning'!J27 -> 11.60 | J202: ='Præmie beregning'!J27 -> 11.60 | K202: ='Præmie beregning'!J27 -> 11.60
B205: Vejhjælp | H205: ='Præmie beregning'!J29 -> 0.56 | I205: ='Præmie beregning'!J29 -> 0.56 | J205: ='Præmie beregning'!J29 -> 0.56 | K205: ='Præmie beregning'!J29 -> 0.56
B207: Bagage | H207: ='Præmie beregning'!J33 -> 5.49 | I207: ='Præmie beregning'!J33 -> 5.49 | J207: ='Præmie beregning'!J33 -> 5.49 | K207: ='Præmie beregning'!J33 -> 5.49
C208: Bagage | F208: ='Præmie beregning'!G32 -> 30,000
C209: Kontanter | F209: ='Præmie beregning'!G33 -> 5,000
B211: Hjemkald | H211: ='Præmie beregning'!J35 -> 4.55 | I211: ='Præmie beregning'!J35 -> 4.55 | J211: ='Præmie beregning'!J35 -> 4.55 | K211: -
B213: Erstatningsmedarbejder | H213: ='Præmie beregning'!J37 -> 0.43 | I213: ='Præmie beregning'!J37 -> 0.43 | J213: ='Præmie beregning'!J37 -> 0.43 | K213: -
B215: =IF('Præmie beregning'!B41="Ja","Udvidet tryghedspakke","Tryghedspakke") -> Tryghedspakke | H215: =IF('Præmie beregning'!B41="Ja",SUM('ERV præmie satser'!L35+'ERV præmie satser'!L71),'ERV præmie satser'!L35) -> 1.17 | I215: =IF('Præmie beregning'!B41="Ja",SUM('ERV præmie satser'!L35+'ERV præmie satser'!L72),'ERV præmie satser'!L35) -> 1.17 | J215: =IF('Præmie beregning'!B41="Ja",SUM('ERV præmie satser'!L35+'ERV præmie satser'!L73),'ERV præmie satser'!L35) -> 1.17 | K215: =IF('Præmie beregning'!B41="Ja",SUM('ERV præmie satser'!L35+'ERV præmie satser'!L70),'ERV præmie satser'!L35) -> 1.17
B217: Privatansvar og global juridisk assistance | H217: ='Præmie beregning'!J43 -> 0.68 | I217: ='Præmie beregning'!J43 -> 0.68 | J217: ='Præmie beregning'!J43 -> 0.68 | K217: ='Præmie beregning'!J43 -> 0.68
B219: Overfald | H219: ='Præmie beregning'!J45 -> 1.12 | I219: ='Præmie beregning'!J45 -> 1.12 | J219: ='Præmie beregning'!J45 -> 1.12 | K219: ='Præmie beregning'!J45 -> 1.12
B221: Selvrisiko indbo- og bilforsikring – gælder kun ved fast bopæl i EU. | H221: ='Præmie beregning'!J47 -> 1.57 | I221: ='Præmie beregning'!J47 -> 1.57 | J221: ='Præmie beregning'!J47 -> 1.57 | K221: ='Præmie beregning'!J47 -> 1.57
B223: Selvrisiko ved leje af motorkøretøj | H223: ='Præmie beregning'!J49 -> 0.56 | I223: ='Præmie beregning'!J49 -> 0.56 | J223: ='Præmie beregning'!J49 -> 0.56 | K223: ='Præmie beregning'!J49 -> 0.56
B225: Afbestilling | F225: ='Præmie beregning'!G52 -> 5,000 | H225: ='Præmie beregning'!J52 -> 10.73 | I225: ='Præmie beregning'!J52 -> 10.73 | J225: ='Præmie beregning'!J52 -> 10.73 | K225: ='Præmie beregning'!J52 -> 10.73
B227: Præmie pr. person pr. dag*: | H227: ='Præmie beregning'!J55 -> 69.94 | I227: ='Præmie beregning'!J56 -> 88.72 | J227: ='Præmie beregning'!J57 -> 108.80 | K227: ='Præmie beregning'!J58 -> 53.24
B228: Budgetdage: | H228: ='Præmie beregning'!G55 -> 0 | I228: ='Præmie beregning'!G56 -> 0 | J228: ='Præmie beregning'!G57 -> 0 | K228: ='Præmie beregning'!G58 -> 0
B230: Præmie for alle dage*: | H230: ='Præmie beregning'!K55 -> 0.00 | I230: ='Præmie beregning'!K56 -> 0.00 | J230: ='Præmie beregning'!K57 -> 0.00 | K230: ='Præmie beregning'!K58 -> 0.00
B233: ='Præmie beregning'!B60 -> Præmie, ekskl. skadeforsikringsafgift til staten | K233: ='Præmie beregning'!K60 -> 1,600.00
B235: ='Præmie beregning'!B62 -> Skadesforsikringsafgift, 1.1 % | K235: ='Præmie beregning'!K62 -> 17.60
B236: ='Præmie beregning'!B63 -> ***Indtast valgfri tekst *** | K236: =IF('Præmie beregning'!K63=0,"",'Præmie beregning'!K63) -> 
B237: ='Præmie beregning'!B64 -> Total (***Indtast valgfri tekst *** er ekskl. moms) | K237: ='Præmie beregning'!K64 -> 1,617.60
B238: ='Præmie beregning'!B65 -> Total | K238: ='Præmie beregning'!K65 -> 1,617.60
B244: - = Dækning er ikke omfattet af policen
B246: * = Den anførte præmie kan være udregnet med flere end de to angivet decimaler
B248: Skadeforsikringsafgiften berigtiges efter lov om afgift af skadesforsikring.
B259: =+'ERV Data'!$D$1 -> #40503 - Y2022_1.00 | J259: ="Tilbud side " & SUM(L170+L260) & "/" & SUM(L170+L260+L344+L424+L503+L597+L684+L777) -> Tilbud side 2/7
L260: 1
B261: Europæiske ERV | J261: www.erv.dk
B262: Frederiksberg Allé 3, DK-1790 København V | J262: Telefon +45 33 25 25 25
B263: CVR 62940514 | J263: Email erhverv@erv.dk
B268: Forsikringsoversigt
B269: Erhvervsrejseforsikring
B270: Gældende fra den 1. maj 2019 - forsikringsbetingelser 40502
B272: For hvem og hvornår gælder forsikringen? Forsikringen kan tegnes af en virksomhed eller forening indenfor EU/EØS og gælder for ansatte der rejser for forsikringstagers regning og som i bopælslandet er berettiget til ydelser i henhold til gældende lov inden for offentlig sygesikring eller privattegnet sygeforsikring. Forsikringen gælder på erhvervsrejser, men kan udvides til at omfatte ferierejser. | H272: Forsikringen dækker rejser i Norden, Europa eller Verden. Dækning ”Afbestilling” dækker, hvis tilvalgt, fra bestilling af erhvervsrejsen og indtil rejsen påbegyndes. Forsikringsoversigten er kun en kortfattet oversigt over forsikringen. De fuldstændige forsikringsbetingelser kan du se på www.erv.dk. Hver overskrift henviser til hvilket punkt i betingelserne hvor det er muligt at finde den fulde forklaring til dækningen.
B283: Oversigt over forsikringsbeløb pr. person og skade (DKK)
B285: Obligatorisk Grunddækning | J285: Forsikringssum
B286: AKUT SYGDOM OG TILSKADEKOMST STK. 1
B287: Behandling for akut sygdom eller tilskadekomst hos læge, speciallæge el. skadestue | I287: Rimelige og nødvendige udgifter
B288: Hospitalsindlæggelse, kost og tilhørende hospitalsydelser | I288: Rimelige og nødvendige udgifter
B289: Lægeordineret medicin | I289: Rimelige og nødvendige udgifter
B290: Sygetransport samt evt. overflytning til nærmeste egnede behandlingssted eller ved behandlingssvigt | I290: Rimelige og nødvendige udgifter
B292: Indhentning af fastlagte rejserute, efter endt behandling | I292: Rimelige og nødvendige udgifter
B293: Diverse udgifter herunder telefonopkald til Europæiske ERV, aviser, bøger, blade og adgang til internettet ved hospitalsindlæggelse, som varer ud over 24 timer | I293: 600 pr. påbegyndt uge
B295: Akut opståede graviditetskomplikationer indtil uge 36 (35+6) inkl. fødsel og behandling af barn | I295: Rimelige og nødvendige udgifter
B296: Psykolog eller psykiater efter hjemkomst til bopælsland Krisehjælp/krispsykolog under rejsen – se stk. 2 | I296: 15.000 pr. skadetilfælde
B298: Udgifter til lokaltransport samt hotelophold og fortæring ved ambulant behandling eller efter endt behandling og indtil hjemrejse kan finde sted. | I298: 2.000 pr. dag
B300: Kompensation ved sygemelding, ved min. 30 dage og max. 6 mdr. sygemelding. | I300: 2.000 pr. måned
B301: Smertestillende tandbehandling under rejsen | I301: Rimelige og nødvendige udgifter
B302: Tandskade som følge af ulykkestilfælde | I302: Rimelige og nødvendige udgifter
B303: Tyggeskade | I303: 10.000 pr. rejse
B304: Fysioterapi, kiropraktik, ergoterapi, osteopati, akupunktur | I304: 10.000 pr. rejse
B305: Lægelig fejlbehandling | I305: 1.000.000 pr. rejse
B306: Europæiske ERV coaching line – professionel telefonisk rådgivning 24/7 | I306: Rimelige og nødvendige udgifter
B307: KRISEHJÆLP STK. 2
B308: Krisehjælp/krisepsykolog til forsikrede ifm. ulykker, voldtægt, overfald, røveri eller anden traumatisk oplevelse fx naturkatastrofer, terroraktioner, politiske uroligheder el.lign | I308: Rimelige og nødvendige udgifter | J308: Rimelige og Nødvendige udgifter
B310: Krisehjælp/krisepsykolog til nært familiemedlem – telefonisk kriseberedskab | I310: Rimelige og nødvendige udgifter
B311: HJEMTRANSPORT STK. 3
B312: Hjemtransport til bopæl eller hospital i bopælsland | I312: Rimelige og nødvendige udgifter
B313: Hjemsendelse af efterladt bagage, som følge af hjemtransport | I313: Rimelige og nødvendige udgifter | J313: Rimelige og Nødvendige udgifter
B314: Hjemtransport i tilfælde af dødsfald inkl. udgifter pålagt ved lov til kiste, balsamering mv. | I314: Rimelige og nødvendige udgifter | J314: Rimelige og Nødvendige udgifter
B315: Begravelsesudgifter i udlandet | I315: Rimelige og nødvendige udgifter, dog max. svarende til omkostninger ved hjemtransport af kiste.
B318: LEDSAGELSE OG TILKALDELSE STK. 4
B319: Ledsagelse: Dækker op til 3 ledsagere, hvis du er hospitalsindlagt, rammes af livstruende sygdom, afgår ved døden eller skal hjemtransporteres. | I319: Rejseomkostninger: Rimelige og nødvendige udgifter Indkvartering, kost og lokal transport: 2.000 pr. dag pr. ledsager.
B324: Tilkaldelse: Dækker op til 3 personer, hvis du er indlagt i mindst 3 dage eller afgår ved døden. | I324: Rejseomkostninger: Rimelige og nødvendige udgifter Indkvartering, kost og lokal transport: 2.000 pr. dag pr. ledsager. | J324: Rejseomkostninger: Rimelige og nødvendige udgifter Indkvartering, kost og lokal transport: 2.000 pr. dag pr. ledsager.
B339: Som udgangspunkt, når der i betingelserne står ”rimelige og nødvendige udgifter”, er summen ubegrænset. Det er Europæiske ERVs skadesafdeling der vurderer om udgifterne er rimelige og nødvendige samt sædvanlige for typen af behandling/skade. Forsikringen indeholder begrænsninger og undtagelser angående omfang og erstatningsbeløb. Det er dit ansvar at sætte dig ind i disse.
B343: =+'ERV Data'!$D$1 -> #40503 - Y2022_1.00 | J343: ="Tilbud side " & SUM(L170+L260+L344) & "/" & SUM(L170+L260+L344+L424+L503+L597+L684+L777) -> Tilbud side 3/7
L344: 1
B345: Europæiske ERV | J345: www.erv.dk
B346: Frederiksberg Allé 3, DK-1790 København V | J346: Telefon +45 33 25 25 25
B347: CVR 62940514 | J347: Email erhverv@erv.dk
B352: Forsikringsoversigt
B353: Erhvervsrejseforsikring
B355: Oversigt over forsikringsbeløb pr. person og skade (DKK)
B357: TILLÆGSDÆKNING | J357: Forsikringssum
B358: REJSEULYKKE – INVALIDITET OG DØDSFALD STK. 5
B359: Invaliditet som følge af ulykke, ved varigt mén på min. 5% Godtgørelse udgør den til méngraden svarende procent af forsikringssummen | I359: Se forsikringspolice
B361: Straksudbetaling ved tilskadekomst, ved ulykkestilfælde jf. skema i forsikringsbetingelser 5.1.A.2. | I361: Se forsikringspolice
B363: Erhvervsevnetab, ved varigt nedsættelse af arbejdsevne | I363: Hvis erhvervsevnetab udgør 15% har du ret til 25% af invaliditetssummen der er udbetalt.
B366: Invaliditet ved trope og øjensygdomme Godtgørelse udgør den til méngraden svarende procent af forsikringssummen | I366: Se forsikringspolice
B368: Arbejdsgiverens ekstraudgifter til transport mellem hjem og arbejde, som følge af ulykkestilfælde, hvor du ikke kan anvende din normale transportform. | I368: 10.000 pr. skadestilfælde
B370: Hjælpemidler ved invaliditet, for at lindre følgerne efter ulykkestilfældet | I370: Op til 3 år, max. 50.000 pr. skadestilfælde
B372: Tekniske ændringer af nærmiljø herunder ændringer af arbejdsplads, bopæl og private bil | I372: 60.000 pr. skadestilfælde
B373: Genoptræning og omskoling som følge af ulykkestilfælde | I373: 60.000 pr. skadestilfælde
B374: Koma som følge af et ulykkestilfælde | I374: 5.000 pr. uge, max. 100.000 pr. skadestilfælde
B376: Død som følge af ulykke | I376: Se forsikringspolice
B377: Dobbelterstatning (særskilt tilvalg) Invaliditet som følge af ulykke, ved varigt mén på over 20% ydes dobbelterstatning Godtgørelsen fordobles i forhold til méngradens svarende procent af forsikringssummen | I377: Se forsikringspolice
B380: REJSELIV OG SYGDOMSINVALIDITET STK. 6
B381: Invaliditet som følge af sygdom, ved varigt mén på mindst 5% Godtgørelsen fordobles i forhold til méngradens svarende procent af forsikringssummen | I381: Se forsikringspolice
B383: Godtgørelse ved dødsfald, som følge af sygdom | I383: Se forsikringspolice
B384: FORSINKET FREMMØDE – MISTET, FORSINKET ELLER AFLYST AFGANG STK. 7
B385: Mistet afgang eller mistet forbindelse, som følge af forsinkelse på vej til afgangssted eller undervejs på rejsen, på grund af uforudsete hændelser. Dækker både ved udrejse, rundrejse og hjemrejse | I385: Rimelige og nødvendige udgifter
B388: Nødvendig indkvartering, måltider, lokal transport, toiletartikler og tøj | I388: 2.000 pr. dag
B389: Forsinket, aflyst eller overbooket transportmiddel. Ved forsinkelse dog min. 3 timer | I389: Rimelige og nødvendige udgifter
B390: Nødvendig Indkvartering, måltider, lokal transport, toiletartikler og tøj | I390: 2.000 pr. dag
B391: BAGAGEFORSINKELSE STK. 8
B392: Dækker udgifter til toiletartikler, tøj eller andre ejendele, hvis bagage forsinkes i forhold til forventet ankomst | I392: Sum ved udrejse: Se forsikringspolice. Sum ved hjemrejse: 2.000
B394: VEJHJÆLP STK. 9
B395: Vejhjælp el. bugsering, hvis bilen bryder sammen, er impliceret i sammenstød eller kører af vejen, og rejsen ikke kan fortsættes. | I395: 1.500 pr. skadestilfælde
B397: Lejebil | I397: 1.000 pr. dag i max. 3 dage
B398: Rejseudgifter til offentlig transport | I398: 2.000, max 6.000 pr. gruppe
B399: Indkvartering og måltider i op til 2 dage | I399: 1.000 pr. dag, max 6.000 pr. dag pr. gruppe
B400: BAGAGE STK. 10
B401: Tyveri, beskadigelse og bortkomst af bagage. Dækker erhvervsmæssige og personlige ejendele inkl. lejede, lånte genstande og gaver | I401: Se forsikringspolice
B403: Kontanter | I403: Se forsikringspolice
B404: Rejsedokumenter | I404: 30.000 pr. skade
B405: Udgifter ifm. udarbejdelse af polit rapport, spærring af konto eller kreditkort | I405: 5.000 pr. skade
B406: Omstilling af låse og/eller erstatning af nøgler til privat bolig og/eller køretøj | I406: 10.000 pr. skade
B407: HJEMKALD STK. 11
B408: Privat hjemkaldelse, ved akut sygdom, tilskadekomst, dødsfald i nærmeste familie eller alvorlig skade på privat bopæl | I408: Rimelige og nødvendige udgifter
B410: Erhvervsbetinget hjemkaldelse, ved akut sygdom eller tilskadekomst blandt nære medarbejdere. Alvorlig skade indtruffet på arbejdsplads. Pludselig og uforudset hændelse på bestemmelsesstedet der umuliggør formålet med erhvervsrejsen. | I410: Rimelige og nødvendige udgifter
B419: Som udgangspunkt, når der i betingelserne står ”rimelige og nødvendige udgifter”, er summen ubegrænset. Det er Europæiske ERVs skadesafdeling der vurderer om, udgifterne er rimelige og nødvendige samt sædvanlige for typen af behandling/skade. Forsikringen indeholder begrænsninger og undtagelser angående omfang og erstatningsbeløb. Det er dit ansvar at sætte dig ind i disse.
B423: =+'ERV Data'!$D$1 -> #40503 - Y2022_1.00 | J423: ="Tilbud side " & SUM(L170+L260+L344+L424) & "/" & SUM(L170+L260+L344+L424+L503+L597+L684+L777) -> Tilbud side 4/7
L424: 1
B425: Europæiske ERV | J425: www.erv.dk
B426: Frederiksberg Allé 3, DK-1790 København V | J426: Telefon +45 33 25 25 25
B427: CVR 62940514 | J427: Email erhverv@erv.dk
B432: Forsikringsoversigt
B433: Erhvervsrejseforsikring
B435: Oversigt over forsikringsbeløb pr. person og skade (DKK)
B437: TILLÆGSDÆKNING | J437: Forsikringssum
B438: ERSTATNINGSMEDARBEJDER STK. 12
B439: Forsikrede erstattes af anden medarbejder pga. akut sygdom, tilskadekomst, dødsfald eller hjemkaldelse | I439: Rimelige og nødvendige udgifter
B441: Refusion af ubenyttede rejseudgifter | I441: 50.000 pr. skade
B442: TRYGHEDSPAKKEN STK. 13
B443: Transport til sikker destination og/eller bopælsland, ifm. evakuering, hvis Udenrigsministeriet eller lokale myndigheder anbefaler at forlade det område, du befinder dig i. | I443: Rimelige og nødvendige udgifter
B445: Hotelophold, kost, lokaltransport | I445: 2.000 pr. dag
B446: Erstatningsindkøb af tøj og toiletartikler | I446: 6.000 pr. rejse
B447: Forlænget ophold ved tilbageholdelse pga. naturkatastrofer, karantæne, terroraktioner, udbrud af krig eller politiske uroligheder | I447: 50.000 pr. rejse
B449: Ekstraudgifter til tøj, toiletartikler eller anden udgift, hvis adgang til private ejendele ikke er mulig pga. myndigheders afspærring | I449: 6.000 pr. rejse
B451: Eftersøgning og redning | I451: 250.000 pr. skade/500.000 pr. skadebegivenhed
B452: Gidselkompensation, dækning ved kidnapning eller kapring | I452: Samlet forsikringssum 750.000 pr. skadebegivenhed (se fordeling nedenfor)
B454: Forsikrede: ▪ Dagskompensation ▪ Psykologisk krisehjælp | I454: 2.500, dog max. 250.000 50.000
B458: Forsikrede: ▪ Udgifter til rådgivning og forhandling ▪ Transportudgifter til erstatningsperson ▪ Lønkompensation for medarbejder | I458: 50.000 50.000 250.000
B463: Ægtefælle/samlever, børn, søskende, forældre: ▪ Telefonisk kriseberedskab ▪ Transport, ophold, forplejning samt tabt arbejdsfortjeneste | I463: 50.000 50.000
B467: PRIVATANSVAR OG GLOBAL JURIDISK ASSISTANCE STK. 14
B468: Privatansvar, person og tingskade over for tredjepart. Skader på lejet bolig/hotelværelse samt indbo. | I468: Personskade: 10.000.000 pr. rejse Tingskade: 10.000.000 pr. rejse
B470: Global juridisk assistance, retstvister opstået under erhvervsrejse til udlandet. Advokatomkostninger, udgifter til syn og skøn, rejseudgifter. | I470: Se forsikringspolice
B472: Sikkerhedsstillelse/kaution | I472: Se forsikringspolice
B473: OVERFALD STK. 15
B474: Personskade som følge af overfald | I474: 1.000.000 pr. skadestilfælde
B475: DÆKNING AF SELVRISIKO STK. 16 – GÆLDER KUN VED FAST BOPÆL I EU
B476: Dækker selvrisiko på egen indboforsikring ved skader på bopæl i bopælsland under erhvervsrejse. | I476: 15.000 pr. skadestilfælde
... 45 more rows

Sheet PDF accepteret tilbud (hidden)
AA1: ='Præmie beregning'!B41 -> Fravalgt
AA2: Fravalgt
B5: Venligst indsend denne pdf til
B8: erhverv@erv.dk
B11: Nedenstående tilbud er hermed accepteret, venligst fremsend police.
E14: Information om virksomheden
E17: Virksomhedens navn | H17: ='Info om virksomhed'!D8 -> Indtast virksomhedens navn
E18: Adresse | H18: ='Info om virksomhed'!D9 -> Indtast adresse
E19: Postnr | H19: ='Info om virksomhed'!D10 -> Indtast postnr
E20: By | H20: ='Info om virksomhed'!D11 -> Indtast by
E21: Land | H21: ='Info om virksomhed'!D12 -> Indtast primært bopælsland
E22: CVR nummer | H22: ='Info om virksomhed'!D13 -> Indtast CVR nr
E24: Kontaktperson i virksomhed | H24: ='Info om virksomhed'!D15 -> Indtast kontaktperson
E25: Tlf. nummer på kontaktperson | H25: ='Info om virksomhed'!D16 -> Indtast tlf
E26: E-mail på kontaktperson | H26: ='Info om virksomhed'!D17 -> Indtast email
E28: Start for forsikring | H28: ='Info om virksomhed'!D19 -> dd-mm-år
E29: Hovedforfald | H29: ='Info om virksomhed'!D20 -> mm-år
E31: Antal betalingsrater pr. år | H31: ='Info om virksomhed'!D22 -> 1
E33: Sprog på police- dansk/engelsk | H33: ='Info om virksomhed'!D24 -> Dansk
E34: Antal policekort | H34: ='Info om virksomhed'!D25 -> 1
E36: Medforsikrede datterselskaber, inkl. cvr numre | H36: ='Info om virksomhed'!D27 & "" -> Indtast datterselskaber inkl cvr nummer
H44: ='Info om virksomhed'!D32 & "" -> 
E46: ='Info om virksomhed'!C34 -> Har kunden forsikring i eksisterende selskab som skal opsiges? | H46: ='Info om virksomhed'!D34 & "" -> Nej
E49: ='Info om virksomhed'!C36 ->  | H49: =IF($H$46="Ja",'Info om virksomhed'!D36,"") -> 
E50: ='Info om virksomhed'!C37 ->  | H50: =IF($H$46="Ja",'Info om virksomhed'!D37,"") ->  | N50: ='Info om virksomhed'!D30 &"" -> 
E51: ='Info om virksomhed'!C38 ->  | H51: =IF($H$46="Ja",'Info om virksomhed'!D38,"") -> 
E52: ='Info om virksomhed'!C39 ->  | H52: =IF($H$46="Ja",'Info om virksomhed'!D39,"") -> 
E54: NIS INFO: | H54: =+'Bruger info'!D16 -> 0%
E55: =+'ERV Data'!C13 -> HUSK i NIS: Sales method | H55: =+'ERV Data'!D13 -> Solgt via beregner
E57: =+'Bruger info'!C6 -> Special Risk - forsikringsformidling ApS information
E60: Agent: | F60: Agent: | H60: =+'Bruger info'!D8 -> Special Risk - forsikringsformidling ApS
E61: Kontaktperson | F61: Kontaktperson | H61: ='Bruger info'!D10 & "" -> Kontakt person - Agent
E62: Email - kontaktperson | F62: Email - kontaktperson | H62: =+'Bruger info'!D11 &"" -> Email Kontakt person - Agent
E63: Tlf - kontaktperson | F63: Tlf - kontaktperson | H63: =+'Bruger info'!D12 &"" -> Tlf Kontakt person - Agent
E64: Agentnummer | F64: Agentnummer | H64: =+'Bruger info'!D9 -> 3501601
E67: Øvrige forhold der skal noteres fra klausuler
E70: =Klausuler!D19 & "" -> 
B82: =+'ERV Data'!$D$1 -> #40503 - Y2022_1.00 | J82: Tilbud side 1/3
B84: Europæiske ERV | J84: www.erv.dk
B85: Frederiksberg Allé 3, DK-1790 København V | J85: Telefon +45 33 25 25 25
B86: CVR 62940514 | J86: Email erhverv@erv.dk
B91: Accepteret tilbud
B94: Forsikringstager | I94: 40502, CTI
B96: ='Info om virksomhed'!D8 -> Indtast virksomhedens navn | I96: Ikrafttrædelsesdato | K96: ='Info om virksomhed'!D19 -> dd-mm-år
B97: ='Info om virksomhed'!D9 -> Indtast adresse | I97: Hovedforfaldsdato | K97: ='Info om virksomhed'!D20 -> mm-år
B98: =CONCATENATE('Info om virksomhed'!D10," ",'Info om virksomhed'!D11) -> Indtast postnr Indtast by | I98: Forsikringsperiode | K98: 1 år
B99: =+'Info om virksomhed'!D12 -> Indtast primært bopælsland | I99: Antal betalingsrater pr. år | K99: =+'Info om virksomhed'!D22 -> 1
I100: Forsikringsbetingelser | K100: 40502
I101: Agenturnr. | K101: ='Bruger info'!D9 -> 3501601
I102: Valuta | K102: DKK
I103: Udstedelsesdato | K103: =TODAY() -> 2022-11-29
B109: Særlige betingelser og klausuler:
C111: Klausuler:
C112: Medrejsende ægtefæller/samlever | J112: =+Klausuler!D8 -> Ja
C113: Medrejsende børn | J113: =+Klausuler!D9 -> Ja
C114: Kombinerede erhvervs- og ferierejser | J114: =+Klausuler!D10 -> Ja
C115: Bestyrelsesmedlemmer | J115: =+Klausuler!D12 -> Ja
C116: Inviterede gæster | J116: =+Klausuler!D13 -> Ja
C117: Eksterne konsulenter | J117: =+Klausuler!D14 -> Ja
C118: Medforsikrede datterselskaber | J118: =+Klausuler!D16 -> Fravalgt
C124: Forsikringen omfatter de hos forsikringstageren medarbejdende ejere og medejere samt de hos
C125: forsikringstageren ansatte personer under erhvervsrejser over alt i verden. Erhvervsrejser i bopælslandet er
C126: dækket, såfremt dette er anført særskilt.
C128: Forsikringstageren fører regnskab med rejseaktiviteten, som grundlag for præmiens beregning.
C130: ='PDF tilbud'!C130 -> Policen er udvidet til at omfatte: medrejsende ægtefæller/samlever, medrejsende børn, kombinerede erhvervs- og ferierejser, bestyrelsesmedlemmer, inviterede gæster, eksterne konsulenter,
C135: Forsikringen dækker tillige under rejser i områder som er defineret på Europæiskes krigs- og risikoliste som
C136: risikozoner (krigszoner undtaget).
C138: ='PDF tilbud'!C138 -> Minimumspræmien pr. forsikringsår andrager kr. 1.600.
C140: De bestilte BTI-kort sendes særskilt via Europæiskes kortleverandør.
C142: Præmien er baseret på 2023 præmier og indekseres pr. 1. januar 2024.
C144: Præmien er inkl. specialrabat.
C146: ='PDF tilbud'!C146 -> Europæiske ERV gør opmærksom på at forsikringsagenten modtager provision/vederlag som følge af forsikringsformidlingen. Ved anmodning er det muligt at få oplyst provisionens/vederlagets størrelse. Enhver ændring af denne aftale skal bekræftes af Europæiske ERV senest 1 måned før policens hovedforfald. I et sådant tilfælde forbeholder Europæiske ERV sig ret til, at ændre præmien ved førstkommende hovedforfaldsdato.
C162: Såfremt et land er nævnt på ERVs krigszoneliste, skal der tegnes separat krigszoneforsikring.
C163: Se mere på: | D163: erv.dk
C164: Kontakt ERV for tilbud.
B169: =+'ERV Data'!$D$1 -> #40503 - Y2022_1.00 | J169: Tilbud side 2/3
B171: Europæiske ERV | J171: www.erv.dk
B172: Frederiksberg Allé 3, DK-1790 København V | J172: Telefon +45 33 25 25 25
B173: CVR 62940514 | J173: Email erhverv@erv.dk
B178: Accepteret tilbud
H180: Præmie pr. person pr. dag
B182: Dækningsoversigt | F182: Forsikringssum | H182: Norden | I182: Europa | J182: Verden | K182: Bopælsland
B184: Obligatorisk grunddækning
B185: Norden | F185: ='Præmie beregning'!G11 -> Ubegrænset | H185: ='Præmie beregning'!J11 -> 11.72 | I185: - | J185: - | K185: -
B186: Europa | F186: ='Præmie beregning'!G12 -> Ubegrænset | H186: - | I186: ='Præmie beregning'!J12 -> 30.50 | J186: - | K186: -
B187: Verden | F187: ='Præmie beregning'!G13 -> Ubegrænset | H187: - | I187: - | J187: ='Præmie beregning'!J13 -> 50.58 | K187: -
B190: Tillægsdækning
B191: Rejseulykke | H191: ='Præmie beregning'!J17 -> 8.05 | I191: ='Præmie beregning'!J17 -> 8.05 | J191: ='Præmie beregning'!J17 -> 8.05 | K191: ='Præmie beregning'!J17 -> 8.05
C192: Ulykke - Død | F192: ='Præmie beregning'!G16 -> 500,000
C193: Ulykke - Invaliditet | F193: ='Præmie beregning'!G17 -> 500,000
C194: Dobbelt erstatning | F194: ='Præmie beregning'!B18 -> Ja
B196: Rejseliv og sygdomsinvaliditet | H196: ='Præmie beregning'!J22 -> 8.50 | I196: ='Præmie beregning'!J22 -> 8.50 | J196: ='Præmie beregning'!J22 -> 8.50 | K196: ='Præmie beregning'!J22 -> 8.50
C197: Livsforsikring Død | F197: ='Præmie beregning'!G21 -> 500,000
C198: Sygdomsinvaliditet | F198: ='Præmie beregning'!G22 -> 500,000
B200: Forsinket fremmøde - mistet, forsinket eller aflyst afgang | H200: ='Præmie beregning'!J24 -> 3.21 | I200: ='Præmie beregning'!J24 -> 3.21 | J200: ='Præmie beregning'!J24 -> 3.21 | K200: ='Præmie beregning'!J24 -> 3.21
B202: Bagageforsinkelse | F202: ='Præmie beregning'!G27 -> 5,000 | H202: ='Præmie beregning'!J27 -> 11.60 | I202: ='Præmie beregning'!J27 -> 11.60 | J202: ='Præmie beregning'!J27 -> 11.60 | K202: ='Præmie beregning'!J27 -> 11.60
B205: Vejhjælp | H205: ='Præmie beregning'!J29 -> 0.56 | I205: ='Præmie beregning'!J29 -> 0.56 | J205: ='Præmie beregning'!J29 -> 0.56 | K205: ='Præmie beregning'!J29 -> 0.56
B207: Bagage | H207: ='Præmie beregning'!J33 -> 5.49 | I207: ='Præmie beregning'!J33 -> 5.49 | J207: ='Præmie beregning'!J33 -> 5.49 | K207: ='Præmie beregning'!J33 -> 5.49
C208: Bagage | F208: ='Præmie beregning'!G32 -> 30,000
C209: Kontanter | F209: ='Præmie beregning'!G33 -> 5,000
B211: Hjemkald | H211: ='Præmie beregning'!J35 -> 4.55 | I211: ='Præmie beregning'!J35 -> 4.55 | J211: ='Præmie beregning'!J35 -> 4.55 | K211: -
B213: Erstatningsmedarbejder | H213: ='Præmie beregning'!J37 -> 0.43 | I213: ='Præmie beregning'!J37 -> 0.43 | J213: ='Præmie beregning'!J37 -> 0.43 | K213: -
B215: =IF('Præmie beregning'!B41="Ja","Udvidet tryghedspakke","Tryghedspakke") -> Tryghedspakke | H215: =IF('Præmie beregning'!B41="Ja",SUM('ERV præmie satser'!L35+'ERV præmie satser'!L71),'ERV præmie satser'!L35) -> 1.17 | I215: =IF('Præmie beregning'!B41="Ja",SUM('ERV præmie satser'!L35+'ERV præmie satser'!L72),'ERV præmie satser'!L35) -> 1.17 | J215: =IF('Præmie beregning'!B41="Ja",SUM('ERV præmie satser'!L35+'ERV præmie satser'!L73),'ERV præmie satser'!L35) -> 1.17 | K215: =IF('Præmie beregning'!B41="Ja",SUM('ERV præmie satser'!L35+'ERV præmie satser'!L70),'ERV præmie satser'!L35) -> 1.17
B217: Privatansvar og global juridisk assistance | H217: ='Præmie beregning'!J43 -> 0.68 | I217: ='Præmie beregning'!J43 -> 0.68 | J217: ='Præmie beregning'!J43 -> 0.68 | K217: ='Præmie beregning'!J43 -> 0.68
B219: Overfald | H219: ='Præmie beregning'!J45 -> 1.12 | I219: ='Præmie beregning'!J45 -> 1.12 | J219: ='Præmie beregning'!J45 -> 1.12 | K219: ='Præmie beregning'!J45 -> 1.12
B221: Selvrisiko indbo- og bilforsikring – gælder kun ved fast bopæl i EU | H221: ='Præmie beregning'!J47 -> 1.57 | I221: ='Præmie beregning'!J47 -> 1.57 | J221: ='Præmie beregning'!J47 -> 1.57 | K221: ='Præmie beregning'!J47 -> 1.57
B223: Selvrisiko ved leje af motorkøretøj | H223: ='Præmie beregning'!J49 -> 0.56 | I223: ='Præmie beregning'!J49 -> 0.56 | J223: ='Præmie beregning'!J49 -> 0.56 | K223: ='Præmie beregning'!J49 -> 0.56
B225: Afbestilling | F225: ='Præmie beregning'!G52 -> 5,000 | H225: ='Præmie beregning'!J52 -> 10.73 | I225: ='Præmie beregning'!J52 -> 10.73 | J225: ='Præmie beregning'!J52 -> 10.73 | K225: ='Præmie beregning'!J52 -> 10.73
B227: Præmie pr. dag*: | H227: ='Præmie beregning'!J55 -> 69.94 | I227: ='Præmie beregning'!J56 -> 88.72 | J227: ='Præmie beregning'!J57 -> 108.80 | K227: ='Præmie beregning'!J58 -> 53.24
B228: Budgetdage: | H228: ='Præmie beregning'!G55 -> 0 | I228: ='Præmie beregning'!G56 -> 0 | J228: ='Præmie beregning'!G57 -> 0 | K228: ='Præmie beregning'!G58 -> 0
B230: Præmie for alle dage*: | H230: ='Præmie beregning'!K55 -> 0.00 | I230: ='Præmie beregning'!K56 -> 0.00 | J230: ='Præmie beregning'!K57 -> 0.00 | K230: ='Præmie beregning'!K58 -> 0.00
B233: ='Præmie beregning'!B60 -> Præmie, ekskl. skadeforsikringsafgift til staten | K233: ='Præmie beregning'!K60 -> 1,600.00
B235: ='Præmie beregning'!B62 -> Skadesforsikringsafgift, 1.1 % | K235: ='Præmie beregning'!K62 -> 17.60
B236: ='Præmie beregning'!B63 -> ***Indtast valgfri tekst *** | K236: =IF('Præmie beregning'!K63=0,"",'Præmie beregning'!K63) -> 
B237: ='Præmie beregning'!B64 -> Total (***Indtast valgfri tekst *** er ekskl. moms) | K237: ='Præmie beregning'!K64 -> 1,617.60
B238: ='Præmie beregning'!B65 -> Total | K238: ='Præmie beregning'!K65 -> 1,617.60
B245: - = Dækning er ikke omfattet af policen
B247: * = Den anførte præmie kan være udregnet med flere end de to angivet decimaler
B249: Skadeforsikringsafgiften berigtiges efter lov om afgift af skadesforsikring.
B259: =+'ERV Data'!$D$1 -> #40503 - Y2022_1.00 | J259: Tilbud side 3/3
B261: Europæiske ERV | J261: www.erv.dk
B262: Frederiksberg Allé 3, DK-1790 København V | J262: Telefon +45 33 25 25 25
B263: CVR 62940514 | J263: Email erhverv@erv.dk

Sheet PDF certifikat (hidden)
AA1: ='Præmie beregning'!B41 -> Fravalgt
AA2: Fravalgt
B10: Certifikat til
B11: ='Info om virksomhed'!D8 & "" -> Indtast virksomhedens navn
B91: Certifikat
B94: Forsikringstager | I94: 40502, CTI
B96: ='Info om virksomhed'!D8 -> Indtast virksomhedens navn | I96: Ikrafttrædelsesdato | K96: ='Info om virksomhed'!D19 -> dd-mm-år
B97: ='Info om virksomhed'!D9 -> Indtast adresse | I97: Hovedforfaldsdato | K97: ='Info om virksomhed'!D20 -> mm-år
B98: =CONCATENATE('Info om virksomhed'!D10," ",'Info om virksomhed'!D11) -> Indtast postnr Indtast by | I98: Forsikringsperiode | K98: 1 år
B99: =+'Info om virksomhed'!D12 -> Indtast primært bopælsland | I99: Antal betalingsrater pr. år | K99: =+'Info om virksomhed'!D22 -> 1
I100: Forsikringsbetingelser | K100: 40502
I101: Agenturnr. | K101: ='Bruger info'!D9 -> 3501601
I102: Valuta | K102: DKK
I103: Udstedelsesdato | K103: =TODAY() -> 2022-11-29
I105: Certikatnr: | K105: ='Bruger admin'!F24 -> Certifikat nr
B109: Særlige betingelser og klausuler:
C111: Klausuler:
C112: Medrejsende ægtefæller/samlever | J112: =+Klausuler!D8 -> Ja
C113: Medrejsende børn | J113: =+Klausuler!D9 -> Ja
C114: Kombinerede erhvervs- og ferierejser | J114: =+Klausuler!D10 -> Ja
C115: Bestyrelsesmedlemmer | J115: =+Klausuler!D12 -> Ja
C116: Inviterede gæster | J116: =+Klausuler!D13 -> Ja
C117: Eksterne konsulenter | J117: =+Klausuler!D14 -> Ja
C118: Medforsikrede datterselskaber | J118: =+Klausuler!D16 -> Fravalgt
C124: Forsikringen omfatter de hos forsikringstageren medarbejdende ejere og medejere samt de hos
C125: forsikringstageren ansatte personer under erhvervsrejser over alt i verden. Erhvervsrejser i bopælslandet er
C126: dækket, såfremt dette er anført særskilt.
C128: Forsikringstageren fører regnskab med rejseaktiviteten, som grundlag for præmiens beregning.
C130: =CONCATENATE(IF(OR($J$112="Ja",$J$113="Ja",$J$114="Ja",$J$115="Ja",$J$116="Ja",$J$117="Ja"),"Policen er udvidet til at omfatte: "," "),IF(J112="Ja",LOWER(CONCATENATE(C112,", ",)),""),IF(J113="Ja",LOWER(CONCATENATE(C113,", ",)),""),IF(J114="Ja",LOWER(CONCATENATE(C114,", ",)),""),IF(J115="Ja",LOWER(CONCATENATE(C115,", ",)),""),IF(J116="Ja",LOWER(CONCATENATE(C116,", ",)),""),IF(J117="Ja",LOWER(CONCATENATE(C117,", ",)),"")) -> Policen er udvidet til at omfatte: medrejsende ægtefæller/samlever, medrejsende børn, kombinerede erhvervs- og ferierejser, bestyrelsesmedlemmer, inviterede gæster, eksterne konsulenter,
C135: Forsikringen dækker tillige under rejser i områder som er defineret på Europæiskes krigs- og risikoliste som
C136: risikozoner (krigszoner undtaget).
C138: ='PDF tilbud'!C138 -> Minimumspræmien pr. forsikringsår andrager kr. 1.600.
C140: De bestilte BTI-kort sendes særskilt via Europæiskes kortleverandør.
C142: Præmien er baseret på 2023 præmier og indekseres pr. 1. januar 2024.
C144: Præmien er inkl. specialrabat.
C146: ='PDF tilbud'!C146 -> Europæiske ERV gør opmærksom på at forsikringsagenten modtager provision/vederlag som følge af forsikringsformidlingen. Ved anmodning er det muligt at få oplyst provisionens/vederlagets størrelse. Enhver ændring af denne aftale skal bekræftes af Europæiske ERV senest 1 måned før policens hovedforfald. I et sådant tilfælde forbeholder Europæiske ERV sig ret til, at ændre præmien ved førstkommende hovedforfaldsdato.
C162: Såfremt et land er nævnt på ERVs krigszoneliste, skal der tegnes separat krigszone forsikring.
C163: Se mere på: | D163: erv.dk | E163: Venligst kontakt ERV for tilbud.
C165: Produktinformation om vores forsikringer: | F165: Link
B169: =+'ERV Data'!$D$1 -> #40503 - Y2022_1.00 | J169: Tilbud side 1/2
B171: Europæiske ERV | J171: www.erv.dk
B172: Frederiksberg Allé 3, DK-1790 København V | J172: Telefon +45 33 25 25 25
B173: CVR 62940514 | J173: Email erhverv@erv.dk
B178: Certifikat
H180: Præmie pr. person pr. dag
B182: Dækningsoversigt | F182: Forsikringssum | H182: Norden | I182: Europa | J182: Verden | K182: Bopælsland
B184: Obligatorisk grunddækning
B185: Norden | F185: ='Præmie beregning'!G11 -> Ubegrænset | H185: ='Præmie beregning'!J11 -> 11.72 | I185: - | J185: - | K185: -
B186: Europa | F186: ='Præmie beregning'!G12 -> Ubegrænset | H186: - | I186: ='Præmie beregning'!J12 -> 30.50 | J186: - | K186: -
B187: Verden | F187: ='Præmie beregning'!G13 -> Ubegrænset | H187: - | I187: - | J187: ='Præmie beregning'!J13 -> 50.58 | K187: -
B190: Tillægsdækning
B191: Rejseulykke | H191: ='Præmie beregning'!J17 -> 8.05 | I191: ='Præmie beregning'!J17 -> 8.05 | J191: ='Præmie beregning'!J17 -> 8.05 | K191: ='Præmie beregning'!J17 -> 8.05
C192: Ulykke - Død | F192: ='Præmie beregning'!G16 -> 500,000
C193: Ulykke - Invaliditet | F193: ='Præmie beregning'!G17 -> 500,000
C194: Dobbelt erstatning | F194: ='Præmie beregning'!B18 -> Ja
B196: Rejseliv og sygdomsinvaliditet | H196: ='Præmie beregning'!J22 -> 8.50 | I196: ='Præmie beregning'!J22 -> 8.50 | J196: ='Præmie beregning'!J22 -> 8.50 | K196: ='Præmie beregning'!J22 -> 8.50
C197: Livsforsikring Død | F197: ='Præmie beregning'!G21 -> 500,000
C198: Sygdomsinvaliditet | F198: ='Præmie beregning'!G22 -> 500,000
B200: Forsinket fremmøde - mistet, forsinket eller aflyst afgang | H200: ='Præmie beregning'!J24 -> 3.21 | I200: ='Præmie beregning'!J24 -> 3.21 | J200: ='Præmie beregning'!J24 -> 3.21 | K200: ='Præmie beregning'!J24 -> 3.21
B202: Bagageforsinkelse | F202: ='Præmie beregning'!G27 -> 5,000 | H202: ='Præmie beregning'!J27 -> 11.60 | I202: ='Præmie beregning'!J27 -> 11.60 | J202: ='Præmie beregning'!J27 -> 11.60 | K202: ='Præmie beregning'!J27 -> 11.60
B205: Vejhjælp | H205: ='Præmie beregning'!J29 -> 0.56 | I205: ='Præmie beregning'!J29 -> 0.56 | J205: ='Præmie beregning'!J29 -> 0.56 | K205: ='Præmie beregning'!J29 -> 0.56
B207: Bagage | H207: ='Præmie beregning'!J33 -> 5.49 | I207: ='Præmie beregning'!J33 -> 5.49 | J207: ='Præmie beregning'!J33 -> 5.49 | K207: ='Præmie beregning'!J33 -> 5.49
C208: Bagage | F208: ='Præmie beregning'!G32 -> 30,000
C209: Kontanter | F209: ='Præmie beregning'!G33 -> 5,000
B211: Hjemkald | H211: ='Præmie beregning'!J35 -> 4.55 | I211: ='Præmie beregning'!J35 -> 4.55 | J211: ='Præmie beregning'!J35 -> 4.55 | K211: -
B213: Erstatningsmedarbejder | H213: ='Præmie beregning'!J37 -> 0.43 | I213: ='Præmie beregning'!J37 -> 0.43 | J213: ='Præmie beregning'!J37 -> 0.43 | K213: -
B215: =IF('Præmie beregning'!B41="Ja","Udvidet tryghedspakke","Tryghedspakke") -> Tryghedspakke | H215: =IF('Præmie beregning'!B41="Ja",SUM('ERV præmie satser'!L35+'ERV præmie satser'!L71),'ERV præmie satser'!L35) -> 1.17 | I215: =IF('Præmie beregning'!B41="Ja",SUM('ERV præmie satser'!L35+'ERV præmie satser'!L72),'ERV præmie satser'!L35) -> 1.17 | J215: =IF('Præmie beregning'!B41="Ja",SUM('ERV præmie satser'!L35+'ERV præmie satser'!L73),'ERV præmie satser'!L35) -> 1.17 | K215: =IF('Præmie beregning'!B41="Ja",SUM('ERV præmie satser'!L35+'ERV præmie satser'!L70),'ERV præmie satser'!L35) -> 1.17
B217: Privatansvar og global juridisk assistance | H217: ='Præmie beregning'!J43 -> 0.68 | I217: ='Præmie beregning'!J43 -> 0.68 | J217: ='Præmie beregning'!J43 -> 0.68 | K217: ='Præmie beregning'!J43 -> 0.68
B219: Overfald | H219: ='Præmie beregning'!J45 -> 1.12 | I219: ='Præmie beregning'!J45 -> 1.12 | J219: ='Præmie beregning'!J45 -> 1.12 | K219: ='Præmie beregning'!J45 -> 1.12
B221: Selvrisiko indbo- og bilforsikring – gælder kun ved fast bopæl i EU | H221: ='Præmie beregning'!J47 -> 1.57 | I221: ='Præmie beregning'!J47 -> 1.57 | J221: ='Præmie beregning'!J47 -> 1.57 | K221: ='Præmie beregning'!J47 -> 1.57
B223: Selvrisiko ved leje af motorkøretøj | H223: ='Præmie beregning'!J49 -> 0.56 | I223: ='Præmie beregning'!J49 -> 0.56 | J223: ='Præmie beregning'!J49 -> 0.56 | K223: ='Præmie beregning'!J49 -> 0.56
B225: Afbestilling | F225: ='Præmie beregning'!G52 -> 5,000 | H225: ='Præmie beregning'!J52 -> 10.73 | I225: ='Præmie beregning'!J52 -> 10.73 | J225: ='Præmie beregning'!J52 -> 10.73 | K225: ='Præmie beregning'!J52 -> 10.73
B227: Præmie pr. dag*: | H227: ='Præmie beregning'!J55 -> 69.94 | I227: ='Præmie beregning'!J56 -> 88.72 | J227: ='Præmie beregning'!J57 -> 108.80 | K227: ='Præmie beregning'!J58 -> 53.24
B228: Budgetdage: | H228: ='Præmie beregning'!G55 -> 0 | I228: ='Præmie beregning'!G56 -> 0 | J228: ='Præmie beregning'!G57 -> 0 | K228: ='Præmie beregning'!G58 -> 0
B230: Præmie for alle dage*: | H230: ='Præmie beregning'!K55 -> 0.00 | I230: ='Præmie beregning'!K56 -> 0.00 | J230: ='Præmie beregning'!K57 -> 0.00 | K230: ='Præmie beregning'!K58 -> 0.00
B233: ='Præmie beregning'!B60 -> Præmie, ekskl. skadeforsikringsafgift til staten | K233: ='Præmie beregning'!K60 -> 1,600.00
B235: ='Præmie beregning'!B62 -> Skadesforsikringsafgift, 1.1 % | K235: ='Præmie beregning'!K62 -> 17.60
B236: ='Præmie beregning'!B63 -> ***Indtast valgfri tekst *** | K236: ='Præmie beregning'!K63 -> 0.00
B237: ='Præmie beregning'!B64 -> Total (***Indtast valgfri tekst *** er ekskl. moms) | K237: ='Præmie beregning'!K62 -> 17.60
B238: ='Præmie beregning'!B65 -> Total | K238: ='Præmie beregning'!K65 -> 1,617.60
B245: - = Dækning er ikke omfattet af policen
B247: * = Den anførte præmie kan være udregnet med flere end de to angivet decimaler
B249: Skadeforsikringsafgiften berigtiges efter lov om afgift af skadesforsikring.
B259: =+'ERV Data'!$D$1 -> #40503 - Y2022_1.00 | J259: Tilbud side 2/2
B261: Europæiske ERV | J261: www.erv.dk
B262: Frederiksberg Allé 3, DK-1790 København V | J262: Telefon +45 33 25 25 25
B263: CVR 62940514 | J263: Email erhverv@erv.dk

Sheet ERV præmie satser (hidden)
B1: =CONCATENATE("Præmie 2021 (NIS Index ",$S$1,") - NIS præmier") -> Præmie 2021 (NIS Index 1,1226) - NIS præmier | R1: ERV INDEX 2021 | S1: =Y3 -> 1.1226 | X1: New index: | Y1: 1.0168
X2: Last Year | Y2: 1.0376
B3: Forsikringsdækning | G3: Forsikringssum | J3: Dagspræmie | L3: Rabat i % | W3: SKRIV HER | X3: This year | Y3: 1.1226 | Z3: SKRIV HER | AB3: 1.0376
L4: ='Bruger info'!D16 -> 0% | N4: Input from Customer - Denmark | R4: Price calculation | X4: Calc index | Y4: =+Y3/Y2 -> 1.081919815
B5: 1. | D5: Grunddækning
D6: (Sygdom/tilskadekomst, Hjemtransport, Sygeledsagelse/Tilkaldelse, Krise Hjælp) | N6: Travel Days | T6: D.06/11-2021
D7: a. Norden | G7: Ubegrænset | J7: =S8 -> 11.72 | L7: =J7-(J7*$L$4) -> 11.72 | N7: Domestic Travel Days | O7: =G51 -> 0 | R7: Domestic | S7: 0.00
D8: b. Europa | G8: Ubegrænset | J8: =S9 -> 30.50 | L8: =J8-(J8*$L$4) -> 30.50 | N8: Nordic Travel days | O8: =G52 -> 0 | R8: Norden | S8: 11.720 | T8: =S12+S23+S26+S29
D9: c. Verden | G9: Ubegrænset | J9: =S10 -> 50.58 | L9: =J9-(J9*$L$4) -> 50.58 | N9: Travel days Europe | O9: =G53 -> 0 | R9: Europa | S9: 30.500 | T9: =T12+T23+T26+T29 | X9: 2019 præmier der beregnes index på
N10: Travel days World | O10: =G54 -> 0 | R10: Verden | S10: 50.580 | T10: =U12+U23+U26+U29 | X10: Last Year
B11: 2. | C11: ='Præmie beregning'!B15 -> Ja | D11: Rejseulykke: | S11: Norden | T11: Europa | U11: Verden | X11: Norden | Y11: Europa | Z11: Verden
D12: (ml. 0-2.000.000) | E12: død | G12: ='Præmie beregning'!G16 -> 500,000 | N12: Optinal covers | Q12: 1. | R12: Illness and Injury | S12: =SUM(S13:S22) -> 8.6661 | T12: =SUM(T13:T22) -> 22.5535 | U12: =SUM(U13:U22) -> 37.4038 | W12: Sum | X12: 8.01 | Y12: 20.85 | Z12: 34.57
D13: (ml. 0-2.000.000) | E13: invaliditet | G13: ='Præmie beregning'!G17 -> 500,000 | J13: =IF(C11="Ja",S33,0) -> 8.05 | L13: =J13-(J13*$L$4) -> 8.05 | R13: Unforseen illness and injury | S13: =+X13*$Y$4 -> 6.499589 | T13: =+Y13*$Y$4 -> 16.915117 | U13: 28.052822 | W13: Index | X13: 6.01 | Y13: 15.63 | Z13: 25.93
C14: ='Præmie beregning'!B18 -> Ja | D14: Dobbelt erstatning | N14: Grunddækninger | R14: Pregnancy and birth | S14: 0.433306 | T14: =+Y14*$Y$4 -> 1.127674 | U14: =+Z14*$Y$4 -> 1.870188 | W14: Index | X14: 0.40 | Y14: 1.04 | Z14: 1.73
N15: Grunddækning Domestic | O15: Ja | R15: Psychologist and psychiatrist | S15: 0.433306 | T15: 1.127674 | U15: 1.870188 | W15: Index | X15: 0.40 | Y15: 1.04 | Z15: 1.73
B16: 3. | C16: ='Præmie beregning'!B20 -> Ja | D16: Sygdomsinvaliditet/Rejseliv: | N16: Grunddækning Norden | O16: Ja | R16: Local travel costs | S16: 0.086661 | T16: 0.225535 | U16: 0.374038 | W16: Index | X16: 0.08 | Y16: 0.21 | Z16: 0.35
D17: (ml. 0-1.000.000) | E17: død | G17: ='Præmie beregning'!G21 -> 500,000 | N17: Grundækning Europa | O17: Ja | R17: Expenses for food and accommodation | S17: 0.086661 | T17: 0.225535 | U17: 0.374038 | W17: Index | X17: 0.08 | Y17: 0.21 | Z17: 0.35
D18: (ml. 0-1.000.000) | E18: invaliditet | G18: ='Præmie beregning'!G22 -> 500,000 | J18: =IF(C16="Ja",S45,0) -> 8.50 | L18: =S46+(S47-(S47*$L$4)) -> 8.50 | N18: Grunddækning Verden | O18: Ja | R18: Convalescence compensation | S18: 0.086661 | T18: 0.225535 | U18: 0.374038 | W18: Index | X18: 0.08 | Y18: 0.21 | Z18: 0.35
R19: Acute dental treatment | S19: 0.433306 | T19: 1.127674 | U19: 1.870188 | W19: Index | X19: 0.40 | Y19: 1.04 | Z19: 1.73
B20: 4. | C20: ='Præmie beregning'!B24 -> Ja | D20: Forsinket Fremmøde - Mistet, forsinket eller aflyst afgang | J20: =IF(C20="Ja",S49,0) -> 3.21 | L20: =J20-(J20*$L$4) -> 3.21 | N20: Accident Death and disability | O20: =C11 -> Ja | R20: Dental injury | S20: 0.086661 | T20: 0.225535 | U20: 0.374038 | W20: Index | X20: 0.08 | Y20: 0.21 | Z20: 0.35
N21: Permanent disability in case of ilness | O21: =C16 -> Ja | R21: Physiotherapy and chiropractic treatment | S21: 0.433306 | T21: 1.127674 | U21: 1.870188 | W21: Index | X21: 0.40 | Y21: 1.04 | Z21: 1.73
B22: 5. | C22: ='Præmie beregning'!B26 -> Ja | D22: Bagageforsinkelse | N22: Delay | O22: =C20 -> Ja | R22: Medical malpractice | S22: 0.086661 | T22: 0.225535 | U22: 0.374038 | W22: Index | X22: 0.08 | Y22: 0.21 | Z22: 0.35
D23: (ml. 3.000-7.500) | G23: ='Præmie beregning'!G27 -> 5,000 | J23: =IF(C22="Ja",S53,0) -> 11.60 | L23: =J23-(J23*$L$4) -> 11.60 | N23: Lugage Delay | O23: =C22 -> Ja | R23: Repatriation | S23: =SUM(S24:S25) -> 2.298537 | T23: =SUM(T24:T25) -> 5.981921 | U23: 9.920698 | W23: Sum | X23: 2.12 | Y23: 5.53 | Z23: 9.17
N24: Road Safety | O24: =C25 -> Ja | R24: Repatriation | S24: =+X24*$Y$4 -> 2.183610 | T24: =+Y24*$Y$4 -> 5.682825 | U24: =+Z24*$Y$4 -> 9.424663 | W24: Index | X24: 2.02 | Y24: 5.25 | Z24: 8.71
B25: 6. | C25: ='Præmie beregning'!B29 -> Ja | D25: Vejhjælp | J25: =IF(C25="Ja",S56,0) -> 0.56 | L25: =J25-(J25*$L$4) -> 0.56 | N25: Luggage | O25: =C27 -> Ja | R25: Burial | S25: =+X25*$Y$4 -> 0.114927 | T25: 0.299096 | U25: 0.496035 | W25: Index | X25: 0.11 | Y25: 0.28 | Z25: 0.46
N26: Curtailment | O26: =C31 -> Ja | R26: Escort and summoning | S26: =SUM(S27:S28) -> 0.517012 | T26: =SUM(T27:T28) -> 1.345518 | U26: =SUM(U27:U28) -> 2.231469 | W26: Sum | X26: 0.48 | Y26: 1.24 | Z26: 2.06
B27: 7. | C27: ='Præmie beregning'!B31 -> Ja | D27: Bagage: | N27: Replacement employee | O27: =C33 -> Ja | R27: Summoning | S27: =+X27*$Y$4 -> 0.258506 | T27: =+Y27*$Y$4 -> 0.672759 | U27: =+Z27*$Y$4 -> 1.115735 | W27: Index | X27: 0.24 | Y27: 0.62 | Z27: 1.03
D28: (ml. 10.000-75.000) | E28: Bagage | G28: ='Præmie beregning'!G32 -> 30,000 | N28: Security Package | O28: =C35 -> Ja | R28: Escort | S28: =+X28*$Y$4 -> 0.258506 | T28: 0.672759 | U28: 1.115735 | W28: Index | X28: 0.24 | Y28: 0.62 | Z28: 1.03
D29: (ml. 5.000-10.000) | E29: Kontanter | G29: ='Præmie beregning'!G33 -> 5,000 | J29: =IF(C27="Ja",S59,0) -> 5.49 | L29: =J29-(J29*$L$4) -> 5.49 | N29: Personal Liability | O29: Not in use | R29: Crisis Therapy | S29: =SUM(S30) -> 0.003300 | T29: =SUM(T30) -> 0.008682 | U29: =SUM(U30) -> 0.014398 | W29: Sum | X29: 0.00 | Y29: 0.01 | Z29: 0.01
N30: Personal Liability (with Bondbail) | O30: =C39 -> Ja | R30: Crisis setup | S30: =+X30*$Y$4 -> 0.003300 | T30: =+Y30*$Y$4 -> 0.008682 | U30: =+Z30*$Y$4 -> 0.014398 | W30: Index | X30: 0.00 | Y30: 0.01 | Z30: 0.01
B31: 8. | C31: ='Præmie beregning'!B35 -> Ja | D31: Hjemkald | J31: =IF(C31="Ja",S65,0) -> 4.55 | L31: =J31-(J31*$L$4) -> 4.55 | N31: Assault coverage | O31: =C41 -> Ja
N32: Excess in connection with motor vehicle hire | O32: =C45 -> Ja
B33: 9. | C33: ='Præmie beregning'!B37 -> Ja | D33: Erstatningsmedarbejder | J33: =IF(C33="Ja",S69,0) -> 0.43 | L33: =J33-(J33*$L$4) -> 0.43 | N33: Excess cover | O33: =C43 -> Ja | Q33: 2. | R33: Accident death and disability | S33: =SUM(S34:S43) -> 8.05 | W33: Sum
N34: Cancellation | O34: =C47 -> Ja | R34: Disability due to accident | S34: =IF(O20="Ja",IF(O42="Fravalgt",O41/100000*0.75,0),0) -> 0.00 | W34: Der beregnes ikke index
B35: 10. | C35: ='Præmie beregning'!B39 -> Ja | D35: Tryghedspakken | J35: =IF(C35="Ja",S73,0) -> 1.17 | L35: =J35-(J35*$L$4) -> 1.17 | N35: Group and conference (TBT) | O35: Not in use | R35: Disability due to accident double | S35: =IF(O42="Ja",O41/100000*1.25,0) -> 6.25 | W35: Der beregnes ikke index
N36: Consult | O36: Not in use | R36: Death due to accident | S36: =IF(O20="Ja",O40/100000*0.34,0) -> 1.70 | W36: Der beregnes ikke index
B37: 10.a | C37: ='Præmie beregning'!B41 -> Fravalgt | D37: Travel Security Hotline | E37: Beregning af TSH - Se Række 70-74. | R37: Injury compensation (not a sub-cover) | S37: 0.00 | W37: Der beregnes ikke index
N38: Optinal Coversums | R38: Economic disability - loss of workability | S38: 0.02 | W38: Der beregnes ikke index
B39: 11. | C39: ='Præmie beregning'!B43 -> Ja | D39: Privatansvar | J39: =IF(C39="Ja",S85,0) -> 0.68 | L39: =J39-(J39*$L$4) -> 0.68 | N39: Travel accident | R39: Travel between home and work if disable | S39: 0.01 | W39: Der beregnes ikke index
N40: Cover sum death | O40: =G12 -> 500,000 | R40: Aids and devices | S40: 0.02 | W40: Der beregnes ikke index
B41: 12. | C41: ='Præmie beregning'!B45 -> Ja | D41: Overfald | J41: =IF(C41="Ja",S91,0) -> 1.12 | L41: =J41-(J41*$L$4) -> 1.12 | N41: Cover disability | O41: =G13 -> 500,000 | R41: Training and occupational rehabilitation | S41: 0.02 | W41: Der beregnes ikke index
N42: Cover Sum disability (Double) | O42: =C14 -> Ja | R42: Technical alterations to the environment | S42: 0.02 | W42: Der beregnes ikke index
B43: 13. | C43: ='Præmie beregning'!B47 -> Ja | D43: Selvrisiko Indbo og Bil forsikring | J43: =IF(C43="Ja",S94,0) -> 1.57 | L43: =J43-(J43*$L$4) -> 1.57 | R43: Coma & Paralysis | S43: 0.01 | W43: Der beregnes ikke index
N44: Permanent disability in case of ilness
B45: 14. | C45: ='Præmie beregning'!B49 -> Ja | D45: Selvrisiko v. leje af motorkøjetøj | J45: =IF(C45="Ja",S98,0) -> 0.56 | L45: =J45-(J45*$L$4) -> 0.56 | N45: Cover Sum death | O45: =G17 -> 500,000 | Q45: 2. | R45: Death and permanent disability in case of ilness | S45: =SUM(S46:S47) -> 8.50 | W45: Sum
N46: Cover Sum disability | O46: =G18 -> 500,000 | R46: Cover Sum death factor | S46: =IF(O21="Ja",0.85/100000*O45,0) -> 4.25 | W46: Der beregnes ikke index
B47: 15. | C47: ='Præmie beregning'!B51 -> Ja | D47: Afbestilling | R47: Cover Sum disability factor | S47: =IF(O21="Ja",0.85/100000*O46,0) -> 4.25 | W47: Der beregnes ikke index
D48: (ml. 5.000-50.000) | G48: ='Præmie beregning'!G52 -> 5,000 | J48: =IF(C47="Ja",S101,0) -> 10.73 | L48: =J48-(J48*$L$4) -> 10.73
N49: Lugage | Q49: 4. | R49: Delay | S49: =SUM(S50:S51) -> 3.21 | W49: Sum
J50: Dags præmie | L50: Dags præmie | N50: Cover sum Luggage | O50: =G28 -> 30,000 | R50: Missed departure | S50: =IF(O22="Ja",2.29,0)*$S$1 -> 2.57 | W50: Index, ligger i fomel
B51: Norden: | E51: Antal rejsedage: | G51: ='Præmie beregning'!G55 -> 0 | J51: =$J$7+$J$13+$J$41+$J$18+$J$29+$J$23+$J$39+$J$25+$J$31+$J$33+$J$35+$J$20+$J$43+$J$45+$J$48+IF($C$37="Ja",$J$71,0) -> 69.94 | L51: =$L$7+$L$13+$L$41+$L$18+$L$29+$L$23+$L$39+$L$25+$L$31+$L$33+$L$35+$L$20+$L$43+$L$45+$L$48+IF($C$37="Ja",$L$71,0) -> 69.94 | N51: Additional cash-cover (sub) | O51: =G29 -> 5,000 | R51: Delayed or cancelled public transport | S51: =IF(O22="Ja",0.57,0)*$S$1 -> 0.64 | W51: Index, ligger i fomel
B52: Europa: | E52: Antal rejsedage: | G52: ='Præmie beregning'!G56 -> 0 | J52: =$J$8+$J$13+$J$41+$J$18+$J$29+$J$23+$J$39+$J$25+$J$31+$J$33+$J$35+$J$20+$J$43+$J$45+$J$48+IF($C$37="Ja",$J$72,0) -> 88.72 | L52: =$L$8+$L$13+$L$41+$L$18+$L$29+$L$23+$L$39+$L$25+$L$31+$L$33+$L$35+$L$20+$L$43+$L$45+$L$48+IF($C$37="Ja",$L$72,0) -> 88.72 | N52: Cover sum Lugage Delay | O52: =G23 -> 5,000
B53: Verden: | E53: Antal rejsedage: | G53: ='Præmie beregning'!G57 -> 0 | J53: =$J$9+$J$13+$J$41+$J$18+$J$29+$J$23+$J$39+$J$25+$J$31+$J$33+$J$35+$J$20+$J$43+$J$45+$J$48+IF($C$37="Ja",$J$73,0) -> 108.80 | L53: =$L$9+$L$13+$L$41+$L$18+$L$29+$L$23+$L$39+$L$25+$L$31+$L$33+$L$35+$L$20+$L$43+$L$45+$L$48+IF($C$37="Ja",$L$73,0) -> 108.80 | Q53: 5. | R53: Luggage delay | S53: =SUM(S54) -> 11.60 | W53: Sum
B54: Danmark*: | E54: Antal rejsedage: | G54: ='Præmie beregning'!G58 -> 0 | J54: =$J$13+$J$41+$J$18+$J$29+$J$23+$J$39+$J$25+$J$35+$J$20+$J$43+$J$45+$J$48+IF($C$37="Ja",$J$70,0) -> 53.24 | L54: =$L$13+$L$41+$L$18+$L$29+$L$23+$L$39+$L$25+$L$35+$L$20+$L$43+$L$45+$L$48+IF($C$37="Ja",$L$70,0) -> 53.24 | N54: Cancellation | R54: Luggage Delay | S54: =IF(O23="Ja",IF(AND(O52>=3000,O52<=20000),7.43+ABS(3000-O52)/1000*1.45,""),)*$S$1 -> 11.60 | W54: Index, ligger i fomel
N55: Cover sum Cancellation | O55: =G48 -> 5,000
J56: Total præmie | L56: Total præmie | Q56: 6. | R56: Road Safety | S56: =SUM(S57) -> 0.56 | W56: Sum
B57: Norden: | J57: =G51*J51 -> 0.00 | L57: =L51*G51 -> 0.00 | R57: Road Safety | S57: =IF(O24="Ja",0.5,0)*$S$1 -> 0.56 | W57: Index, ligger i fomel
B58: Europa: | J58: =G52*J52 -> 0.00 | L58: =L52*G52 -> 0.00
B59: Verden: | J59: =G53*J53 -> 0.00 | L59: =L53*G53 -> 0.00 | Q59: 7. | R59: Luggage | S59: =SUM(S60:S63) -> 5.4864 | W59: Sum
B60: Danmark*: | J60: =G54*J54 -> 0.00 | L60: =L54*G54 -> 0.00 | R60: Personal and company property | S60: =IF(O25="Ja",IF(AND(O50>=10000,O50<=32088),3.05+(O50-10000)/1000*0.10231800072,IF(O50>32088,5.31+(O50-32088)/(5000)*1.45,0)),0) -> 5.0964 | W60: Der beregnes ikke index
B61: Total: | J61: =IF((SUM(J57:J60))<MINPRÆMIE,MINPRÆMIE,(SUM(J57:J60))) -> 1,600.00 | L61: =IF((SUM(L57:L60))>'ERV Data'!D17,"Venligst kontakt ERV ",(IF((SUM(L57:L60))<MINPRÆMIE,MINPRÆMIE,(SUM(L57:L60))))) -> 1,600.00 | R61: Money / cash, credit cards, tickets | S61: =IF(O25="Ja",IF(AND(O51>=5000,O51<=10000),0.29+(O51-5000)*0.00085,),) -> 0.2900 | W61: Der beregnes ikke index
B62: *Danmark er eksklusiv Grunddækning, Hjemkaldelse og Erstatningsmedarbejder. | R62: Travel documents | S62: =IF($O$25="Ja",0.05,0) -> 0.0500 | W62: Der beregnes ikke index
R63: Supplementary expenses (blocking of charge-/credit cards or new keys) | S63: =IF($O$25="Ja",0.05,0) -> 0.0500 | W63: Der beregnes ikke index
Q65: 8. | R65: Curtaliment | S65: =SUM(S66:S67) -> 4.55 | W65: Sum
R66: Curtailment business reasons | S66: =IF(O26="Ja",0.81,0)*$S$1 -> 0.91 | W66: Index, ligger i fomel
R67: Curtailment personal reasons | S67: =IF(O26="Ja",3.24,)*$S$1 -> 3.64 | W67: Index, ligger i fomel
Q69: 9. | R69: Replacement employee | S69: =SUM(S70:S71) -> 0.43 | W69: Sum
B70: Travel Security Hotline beregning. | J70: 0.09 | L70: =ROUND(J70-(J70*$L$4),2) -> 0.09 | R70: Replacement employee | S70: =IF(O27="Ja",0.19,0)*$S$1 -> 0.21 | W70: Index, ligger i fomel
B71: Norden: | J71: 0.97 | L71: =ROUND(J71-(J71*$L$4),2) -> 0.97 | R71: Reimbursement of unused travel bookings | S71: =IF(O27="Ja",0.19,0)*$S$1 -> 0.21
B72: Europa: | J72: 2.38 | L72: =ROUND(J72-(J72*$L$4),2) -> 2.38
B73: Verden: | J73: 3.88 | L73: =ROUND(J73-(J73*$L$4),2) -> 3.88 | Q73: 10. | R73: Security Package | S73: =SUM(S74:S78) -> 1.17 | W73: Sum
B74: Sum TSH: | J74: =SUM(J71:J73) -> 7.23 | L74: =J74-(J74*$L$4) -> 7.23 | R74: Evacuation cost | S74: =IF($O$28="Ja",0.17,)*$S$1 -> 0.19 | W74: Index, ligger i fomel
R75: Extended stay due to quarantine or natural catastrophe | S75: =IF($O$28="Ja",0.17,)*$S$1 -> 0.19 | W75: Index, ligger i fomel
R76: Closure by order of public authority | S76: =IF($O$28="Ja",0.17,)*$S$1 -> 0.19 | W76: Index, ligger i fomel
R77: Search and rescue | S77: =IF($O$28="Ja",0.17,)*$S$1 -> 0.19 | W77: Index, ligger i fomel
R78: Hostage expenses | S78: =IF($O$28="Ja",0.36,)*$S$1 -> 0.40 | W78: Index, ligger i fomel
R80: Pesonal Liability and Legal Expenses | S80: =SUM(S81:S83) ->  | T80: Not in use | W80: Not in use
R81: Personal liability - Personal injury | S81: =IF($U$59="Ja",(IF($U$29="Ja",#REF!/2,0)*$S$94)*0.85,IF($U$29="Ja",#REF!/2,0)*$S$94)*#REF! ->  | T81: Not in use | W81: Not in use
R82: Personal liability - Damage to property | S82: =IF($U$59="Ja",(IF($U$29="Ja",#REF!/2,0)*$S$94)*0.85,IF($U$29="Ja",#REF!/2,0)*$S$94)*#REF! ->  | T82: Not in use | W82: Not in use
R83: Legal expenses | S83: =IF($U$59="Ja",(IF($U$29="Ja",#REF!,0)*$S$94)*0.85,IF($U$29="Ja",#REF!,0)*$S$94)*#REF! ->  | T83: Not in use | W83: Not in use
Q85: 11. | R85: Pesonal Liability and Legal Expenses (inclusive Bond/Bail) | S85: =SUM(S86:S89) -> 0.68 | W85: Sum
R86: Personal liability - Personal injury | S86: =IF($O$30="Ja",0.39/2,0)*$S$1 -> 0.22 | W86: Index, ligger i fomel
R87: Personal liability - Damage to property | S87: =IF($O$30="Ja",0.39/2,0)*$S$1 -> 0.22 | W87: Index, ligger i fomel
R88: Legal expenses | S88: =IF($O$30="Ja",0.22,0)*$S$1 -> 0.25 | W88: Index, ligger i fomel
R89: Bond/Bail | S89: =IF($O$30="Ja",0,0)*$S$1 -> 0.00 | W89: Index, ligger i fomel
Q91: 12. | R91: Assault coverage | S91: =SUM(S92) -> 1.12 | W91: Sum
R92: Assault coverage | S92: =IF($O$31="Ja",1)*$S$1 -> 1.12 | W92: Index, ligger i fomel
Q94: 13. | R94: Excess cover | S94: =SUM(S95:S96) -> 1.57 | W94: Sum
R95: Excess car insurance CoR | S95: =IF($O$33="Ja",1.36,0)*$S$1 -> 1.53 | W95: Index, ligger i fomel
R96: Excess home insurance CoR | S96: =IF($O$33="Ja",0.04,0)*$S$1 -> 0.04 | W96: Index, ligger i fomel
Q98: 14. | R98: Excess in connection with motor vehicle hire | S98: =SUM(S99) -> 0.56 | W98: Sum
R99: Excess in connection with motor vehicle hire | S99: =IF(O32="Ja",0.5*$S$1) -> 0.56 | W99: Index, ligger i fomel
Q101: 15. | R101: Cancellation | S101: =SUM(S102) -> 10.73 | W101: Sum
R102: Cancellation | S102: =IF(O34="Ja",IF(AND(O55>=5000,O55<=10000),9.56+(O55-5000)/1000*1.33,IF(AND(O55>10000,O55<25000),9.56+5000/1000*1.33+(O55-10000)/1000*1.1253,9.56+5000/1000*1.33+15000/1000*1.1253+(O55-25000)/1000*0.788)),0)*$S$1 -> 10.73 | W102: Index, ligger i fomel

Sheet ERV Data (hidden)
C1: Beregner version | D1: #40503 - Y2022_1.00
C4: Opdateret d. | D4: 2022-10-31
C5: Europæiske ERV ansvarlig: | D5: Firmasupport
C7: Skal beregneren have mulighed for honorar / facilitetstillæg. | D7: Nej
C8: * Svaret ændre muligheden for honorar tillæg, linje 60-65 Præmieberegning
C10: Skal bruger blive informeret om "HUSK skadesprocent" | D10: Ingen tekst
C11: * Svaret ændre teksten på linje 35, i arket ”Info om virksomheden”
C13: HUSK i NIS: Sales method | D13: Solgt via beregner
C14: Mægler navn: | D14: Special Risk - forsikringsformidling ApS
C15: Maksimalt rabat sats: | D15: 42%
C16: Minimum præmie sats: | D16: 1,600
C17: Maksimum præmie beløb: | D17: 100,000
C19: Er beregneren til: Mægler, Agent eller forsikringsselskab | D19: Agentur
C20: * Svaret tilføjer juridisk tekst på pdf. tilbuddet til kunden. ”
B22: Værdier som indsættes ved nulstilling af arket "Beregningsark"
C24: 2. Rejseulykke, Stk. 5: | D24: Ja
C25: (Min 1 - Max 2.000.000 kr.) | D25: 500,000
C26: (Min 1 - Max 2.000.000 kr.) | D26: 500,000
C27: Dobbelt erstatning | D27: Ja
C29: 3. Rejseliv og Sygdomsinvaliditet, Stk. 6: | D29: Ja
C30: (Min 1 - Max 1.000.000 kr.) | D30: 500,000
C31: (Min 1 - Max 1.000.000 kr.) | D31: 500,000
C33: 4. Forsinket Fremmøde - Mistet, forsinket eller aflyst afgang, Stk 7: | D33: Ja
C35: 5. Bagageforsinkelse, Stk. 8: | D35: Ja
C36: (Min 3.000 - Max 7.000 kr.) | D36: 5,000
C38: 6. Vejhjælp, Stk 9: | D38: Ja
C40: 7. Bagage, Stk 10: | D40: Ja
C41: (Bagage Min 10.000 - Max 75.000 kr.) | D41: 30,000
C42: (Kontanter Min 5.000 - Max 10.000 kr.) | D42: 5,000
C44: 8. Hjemkald, Stk 11: | D44: Ja
C46: 9. Erstatningsmedarbejder, Stk 12: | D46: Ja
C48: 10. Tryghedspakken, Stk 13: | D48: Ja
C49: Travel Security Hotline - 24/7/365 | D49: Fravalgt
C51: 11 Privatansvar, Stk 14: | D51: Ja
C53: 12 Overfald, Stk 15: | D53: Ja
E54: =(IF($D$24="Fravalgt","HUSK Værdi 0","")) -> 
C55: 13. Selvrisiko Indbo og Bil forsikring, Stk 16: | D55: Ja | E55: =IF($D$24="Fravalgt","HUSK Værdi 0","") -> 
E56: =IF($D$24="Fravalgt","HUSK Værdi 0","") -> 
C57: 14. Selvrisiko v. leje af motorkøjetøj, Stk 17: | D57: Ja
C59: 15. Afbestilling, Stk. 18 | D59: Ja | E59: =IF($D$58="Fravalgt","HUSK Værdi 0","") -> 
D60: 5,000 | E60: =IF($D$58="Fravalgt","HUSK Værdi 0","") -> 
C62: Antal rejsedage | D62: Antal rejsedage:
C63: Norden | D63: 0
C64: Europa | D64: 0
C65: Verden | D65: 0
C66: Danmark | D66: 0
B68: Værdier som indsættes ved nulstilling af arket "Klausuler"
C70: Medrejsende ægtefæller/samlever | D70: Ja
C71: Medrejsende børn | D71: Ja
C72: Kombinerede Erhvervs- og ferierejser | D72: Ja
C74: Bestyrelsesmedlemmer | D74: Ja
C75: Inviterede gæster | D75: Ja
C76: Eksterne konsulenter | D76: Ja
C78: Medforsikrede datterselskaber | D78: Fravalgt
B80: Værdier som indsættes ved nulstilling af arket "Bruger info"
C82: Agent nummer: | D82: 3501383
C83: Kontaktperson: | D83: Kontakt person - Agent
C84: Email - kontaktperson: | D84: Email Kontakt person - Agent
C85: Tlf - kontaktperson: | D85: Tlf Kontakt person - Agent
C86: Ønsket rabat sats: | D86: 0% | F86: Rabat sats for høj
B88: Standard som kan kopiers til ovenstående hvis ikke individuelt tilpasset.
D90: 123456789 - Agent
D91: Kontakt person - Agent
D92: Email Kontakt person - Agent
D93: Tlf Kontakt person - Agent
H186: TEST | I186: =SUM(I149:I151)+SUM(I161:I163)+SUM(I165:I182) -> 0 | J186: =SUM(J149:J151)+SUM(J161:J163)+SUM(J165:J182) -> 0 | K186: =SUM(K149:K151)+SUM(K161:K163)+SUM(K165:K182) -> 0
